Cogmind - Beta 13 @@@ ROGUE MODE // 2024.07.24 @ 13:03:16 Player: Blaj Result: Assimilated 0b10! Performance ------------- Evolutions (9) 4500 Regions Visited (34) 6800 Robots Destroyed (641) 3205 Value Destroyed (32363) 32363 Prototype IDs (49) 980 Alien Tech Used (4) 800 Bonus (36049) 36049 TOTAL SCORE: 84697 Bonus ------- Triggered High Security 500 High Alert Combat Kills 11514 Follower Combat Kills 8253 Entered Garrisons 2600 Used RIF Installer 7500 Destroyed MAIN.C Guards 500 Met MAIN.C 5000 Used 0b10 Conduit 2000 Win 3000 Friendly Fire -4818 Cogmind --------- Core Integrity 623/1600 Matter 300/300 Energy 98/100 System Corruption 42% Temperature Cool (0) Movement Core (50) Location 0b10 Command Parts ------- > --- POWER (3) -------- (None) > --- PROPULSION (6) --- Armored Heavy Treads Experimental Biometal Heavy Treads High-density Centrium Heavy Treads > --- UTILITY (13) ----- Core Analyzer Core Analyzer > --- WEAPON (3) ------- (None) > --- INVENTORY (5) ---- Heavy Siege Treads Armored Heavy Treads Heavy Quantum Rifle Peak State ------------ > --- POWER ------------ Reinforced Antimatter Reactor Compact Particle Reactor Zero-point Reactor > --- PROPULSION ------- Armored Heavy Treads Experimental Biometal Heavy Treads High-density Centrium Heavy Treads > --- UTILITY ---------- Experimental Cooling System Experimental Cooling System Cargo Storage Unit Core Analyzer Core Analyzer Quantum Capacitor Improved Phase Shifter Centrium Heavy Armor Plating Heavy Regenerative Plating > --- WEAPON ----------- Compact HERF Cannon Core Cannon > --- INVENTORY -------- Quantum Reactor Reinforced Quantum Reactor Reinforced Quantum Reactor Advanced Medium Treads Heavy Siege Treads Biometal Medium Treads Biometal Medium Treads Armored Heavy Treads Advanced Power Amplifier Advanced Heat Sink Advanced Heat Sink Experimental Heat Sink Energy Well Energy Well Matter Compressor Advanced Weapon Cycler Improved Phase Shifter Centrium Medium Armor Plating Experimental Focal Shield Experimental EM Disruption Field AEGIS Remote Shield Long-range Tractor Beam Enhanced Quantum Rifle Heavy Quantum Rifle Point Singularity Launcher Advanced Remote Datajack [Rating: 220] Favorites ----------- Power Reinforced Fission Core Engine Heavy Ion Engine Power Core Reinforced Fission Core Reactor Quantum Reactor Propulsion Improved Heavy Treads Treads Improved Heavy Treads Leg Aluminum Leg Wheel Armored Huge Wheel Utility Core Analyzer Device Experimental Cooling System Storage Cargo Storage Unit Processor Core Analyzer Hackware Relay Coupler [Sentry] Protection Hardened Medium Armor Plating Artifact Phase Armor Weapon Improved EM Shotgun Energy Gun Improved EM Shotgun Energy Cannon Enhanced Nova Cannon Ballistic Gun Gauss Rifle Ballistic Cannon Hypervelocity Gauss Cannon Launcher Mini Smartbomb Launcher Special Weapon Advanced Remote Datajack Special Melee Weapon Datajack Build | -11 -10 -10 -9 -9 -8 -8 -8 -8 -7 -7 -7 -7 -6 -6 -5 -5 -5 -5 -4 -4 -4 -4 -3 -3 -3 -3 -3 -2 -2 -2 -1 -1 -1 -1 ------- Run | Yrd Mat Min Mat Min Mat Gar Mat Gar Fac Gar Fac Gar Fac Gar Fac Gar Fac Gar Fac Gar Fac Gar Res Gar Res Qua Gar Res Tes Gar Acc Gar Acc Com Slots Evolved 18 | . . . 2 . 2 . . . 2 . . . 2 . 2 . . . 2 . . . 2 . . . . 2 . . 2 . . . Power 2 | . . . . . . . . . . . . . . . 1 . . . . . . . 1 . . . . . . . . . . . Propulsion 4 | . . . 1 . 1 . . . . . . . . . . . . . 2 . . . . . . . . . . . . . . . Utility 11 | . . . 1 . 1 . . . 2 . . . 2 . 1 . . . . . . . 1 . . . . 2 . . 1 . . . Weapon 1 | . . . . . . . . . . . . . . . . . . . . . . . . . . . . . . . 1 . . . Parts Attached 1004 | 4 25 10 39 2 37 24 14 62 25 15 18 19 27 39 23 46 7 30 7 41 10 58 36 50 26 37 39 71 15 35 1 22 12 78 Power 52 | . 1 . 4 . . 1 . 2 1 . . 1 1 4 1 1 . 2 . 4 . 6 1 1 1 2 1 7 2 2 . 2 1 3 Engine 14 | . 1 . 4 . . 1 . 2 1 . . 1 1 3 . . . . . . . . . . . . . . . . . . . . Core 13 | . . . . . . . . . . . . . . 1 . 1 . 2 . 4 . 1 . . 1 . 1 2 . . . . . . Reactor 25 | . . . . . . . . . . . . . . . 1 . . . . . . 5 1 1 . 2 . 5 2 2 . 2 1 3 Propulsion 105 | 2 3 2 11 . 6 3 3 7 1 . 1 1 3 5 1 1 . 4 1 4 1 17 2 1 5 1 3 3 . 2 . 2 1 8 Treads 92 | 2 2 2 10 . 4 2 2 6 . . . . 2 4 . 1 . 4 1 4 1 17 2 1 5 1 3 3 . 2 . 2 1 8 Leg . | . . . . . . . . . . . . . . . . . . . . . . . . . . . . . . . . . . . Wheel 13 | . 1 . 1 . 2 1 1 1 1 . 1 1 1 1 1 . . . . . . . . . . . . . . . . . . . Hover . | . . . . . . . . . . . . . . . . . . . . . . . . . . . . . . . . . . . Flight . | . . . . . . . . . . . . . . . . . . . . . . . . . . . . . . . . . . . Utility 385 | 1 11 2 9 2 12 7 7 21 10 5 7 6 9 8 9 15 1 9 . 14 3 11 22 15 12 12 23 30 8 19 1 11 6 47 Device 224 | 1 4 2 5 2 9 5 4 8 3 3 6 1 2 1 6 11 1 4 . 7 1 4 16 9 10 6 13 22 3 10 . 5 2 38 Storage 14 | . 2 . 1 . . . 1 . 1 . . . 1 . . . . . . . . . . . 1 . 1 2 . 2 . . 1 1 Processor 10 | . . . . . . 1 . 1 . . . 1 1 . . . . . . . . . 2 . . . 1 . . . . . . 3 Hackware 74 | . . . . . 1 . . 4 4 1 . 3 3 6 2 2 . 4 . 6 1 6 3 4 1 . 7 3 3 5 1 2 . 2 Protection 56 | . 5 . 3 . 2 1 2 8 2 1 1 1 2 1 1 2 . 1 . 1 1 1 1 2 . 3 . 3 2 2 . 3 1 3 Artifact 7 | . . . . . . . . . . . . . . . . . . . . . . . . . . 3 1 . . . . 1 2 . Weapon 462 | 1 10 6 15 . 19 13 4 32 13 10 10 11 14 22 12 29 6 15 6 19 6 24 11 33 8 22 12 31 5 12 . 7 4 20 Energy Gun 40 | 1 6 4 10 . 10 4 1 . . . . . . . . . . . . . . 1 . . . . . . . . . . . 3 Energy Cannon 162 | . . . 2 . 2 3 3 10 1 . 2 2 . 2 7 19 1 6 2 7 3 6 7 17 4 10 4 19 5 9 . 2 . 7 Ballistic Gun 18 | . . . . . . . . 1 . . . . . 5 . . . . . . . 3 . . . . . . . 1 . 2 2 4 Ballistic Cannon 61 | . . . . . . . . 6 8 8 7 2 7 4 1 . 2 2 2 2 1 4 . . 2 . . . . 1 . 2 . . Launcher 40 | . 1 2 . . 5 2 . 4 1 . . 2 . 2 . 1 1 2 . 2 . 2 . 3 . . 1 9 . . . . . . Special Weapon 137 | . 3 . 3 . 2 3 . 8 3 2 1 5 7 9 4 9 2 5 2 8 2 8 4 13 2 12 7 3 . 1 . 1 2 6 Impact Weapon . | . . . . . . . . . . . . . . . . . . . . . . . . . . . . . . . . . . . Slashing Weapon . | . . . . . . . . . . . . . . . . . . . . . . . . . . . . . . . . . . . Piercing Weapon . | . . . . . . . . . . . . . . . . . . . . . . . . . . . . . . . . . . . Special Melee Weapon 4 | . . . . . . 1 . 3 . . . . . . . . . . . . . . . . . . . . . . . . . . Unidentified Prototypes 38 | . . . 2 . 1 . 1 . 1 . . . 1 . 2 . 2 . . . . . 5 . 2 1 1 3 2 2 . 1 . 11 Corrupted Parts 34 | . . 2 . . . . . 1 . . . . . 2 . . . 5 . 1 . 10 . . . . . . 1 4 . 3 . 5 System Corruption 162 | . . 5 . . . . . 2 . . . . . 6 . . . 25 . 2 . 62 . . . . . . 2 30 . 10 . 18 Parts Lost 115 | . 1 1 6 . 5 6 3 14 1 1 2 1 4 9 2 1 . 2 . 3 2 16 1 2 . 1 1 8 . 6 . . 3 13 Power 13 | . 1 . 1 . . 1 . 2 . . . . . 1 . . . . . 1 . 2 . . . . . 2 . 1 . . . 1 Propulsion 34 | . . . 3 . 3 2 1 3 . . . 1 . 3 1 1 . 1 . 1 . 7 . 1 . . . 2 . 2 . . 1 1 Utility 42 | . . . 1 . 2 1 1 5 1 1 . . 4 1 1 . . 1 . 1 1 4 . 1 . 1 1 2 . 2 . . 2 8 Weapon 26 | . . 1 1 . . 2 1 4 . . 2 . . 4 . . . . . . 1 3 1 . . . . 2 . 1 . . . 3 Highest Loss Streak 10 | . 1 1 2 . 2 3 2 10 1 1 2 1 1 6 1 1 . 1 . 1 2 5 1 1 . 1 1 5 . 4 . . 1 7 To Critical Strikes 9 | . . . . . . . . . . . 1 . . 1 1 . . 1 . . . . . 1 . . . . . 3 . . 1 . Average Slot Usage (%) 82 | . 99 100 99 100 90 87 89 89 83 83 84 79 77 81 81 81 82 81 78 78 79 81 75 75 79 79 75 72 73 74 74 75 79 71 Engine 3 | . 13 14 10 11 9 9 9 8 6 7 7 7 6 5 . . . . . . . . . . . . . . . . . . . . Core 2 | . . . . . . . . . . . . . . . 5 4 5 6 10 9 10 6 . . 1 4 4 7 2 . . . . . Reactor 4 | . . . . . . . . . . . . . . . 5 5 5 3 . . . 3 14 14 12 9 9 4 9 12 12 12 12 11 Treads 15 | . 27 28 31 33 31 18 23 17 . . . . 7 11 5 5 5 9 15 16 21 21 14 14 14 14 14 12 13 12 12 12 12 12 Wheel 3 | . . . . . 4 15 6 9 14 15 15 15 8 5 5 5 5 . . . . . . . . . . . . . . . . . Device 10 | . 10 13 11 11 9 7 8 11 14 7 14 11 2 1 9 10 11 3 5 8 8 8 7 7 12 13 6 15 15 15 16 15 16 16 Storage 6 | . 14 14 11 11 9 9 9 9 7 7 7 7 6 6 5 5 5 5 5 5 5 5 4 4 4 4 4 4 4 5 4 4 4 3 Processor 3 | . . . . . . 1 . . . . . 2 9 9 5 5 5 5 5 5 5 5 4 4 4 4 4 4 4 4 4 4 4 6 Hackware 12 | . . . . . . . . 2 15 15 15 15 20 21 19 17 17 27 26 22 20 20 16 14 14 14 15 9 12 16 14 15 12 10 Protection 5 | . 3 . 10 11 9 8 14 12 6 14 7 7 6 5 3 4 5 3 . . 1 . 4 5 5 3 . . 1 1 4 4 6 3 Energy Gun 4 | . 27 27 19 22 15 14 2 . . . . . . . . . . . . . . . . . . . . . . . . . . . Energy Cannon 3 | . . . 2 . . . 15 8 . . 1 1 . . 8 8 3 4 6 6 1 2 4 4 6 4 3 4 4 3 8 2 . 1 Ballistic Cannon 1 | . . . . . . . . 5 12 12 13 6 3 2 . . 2 1 . . 1 2 . . . . . . . . . 3 4 2 Special Weapon 2 | . . . . . . 1 . 2 2 1 . 1 4 2 1 1 1 4 2 2 3 2 2 3 1 4 4 3 4 2 . 1 1 1 Naked Turns . | . . . . . . . . . . . . . . . . . . . . . . . . . . . . . . . . . . . Heaviest Build 285 | 14 50 50 98 100 112 113 114 128 129 133 133 125 258 183 221 221 216 215 197 221 219 219 260 270 264 273 273 263 244 238 232 282 285 285 Greatest Support 235 | 40 40 40 60 60 83 40 80 40 56 56 56 56 56 28 28 60 28 145 215 215 200 230 230 230 230 205 210 225 225 225 225 225 215 235 Greatest Overweight (x) 37 | . 1 1 3 1 9 9 9 37 4 2 2 2 6 7 7 7 7 7 . 1 1 2 1 1 1 1 1 1 1 1 1 1 1 1 Average Overweight (x) 2 | . . 1 . 1 4 4 3 3 2 2 2 1 4 5 7 6 7 2 . . . . . . 1 1 1 . . . 1 1 1 . Largest Inventory Capacity 30 | 8 20 20 25 25 25 25 25 25 25 25 25 25 30 30 30 30 30 30 30 30 30 30 30 30 30 30 30 30 30 30 30 30 30 30 Average Capacity 27 | 8 14 20 21 25 25 25 25 25 25 25 25 25 28 30 30 30 30 30 30 30 30 30 30 30 30 30 30 30 30 30 30 30 30 28 Most Carried 30 | 7 14 20 24 24 25 25 25 25 25 25 25 25 30 30 30 30 30 30 27 30 30 30 30 30 30 30 30 30 30 30 26 30 30 30 Average Carried 26 | 4 11 18 20 23 22 22 24 23 24 23 24 24 27 28 28 29 29 28 27 29 29 26 29 29 29 29 29 29 28 27 26 28 29 26 Final Capacity 30 | 8 20 20 25 25 25 25 25 25 25 25 25 25 30 30 30 30 30 30 30 30 30 30 30 30 30 30 30 30 30 30 30 30 30 5 Final Carried 30 | 4 14 20 23 24 24 20 25 25 24 25 23 24 30 30 30 29 30 29 27 29 30 30 30 29 30 30 30 20 30 26 26 29 25 5 Class Distribution -------------------- 58% | Botlord-Mutant 22% | Mutant 10% | Bothacker-Mutant 4% | Botlord-Tank Dominant Class ---------------- Mutant | -10/Materials Mutant | -10/Mines Mutant | -9/Materials Mutant | -9/Mines Mutant | -8/Materials Mutant | -8/Garrison Mutant | -8/Materials Mutant | -8/Garrison Bothacker-Mutant | -7/Factory Bothacker-Mutant | -7/Garrison Bothacker-Mutant | -7/Factory Botlord-Mutant | -7/Garrison Botlord-Mutant | -6/Factory Botlord-Mutant | -6/Garrison Botlord-Mutant | -5/Factory Botlord-Mutant | -5/Garrison Botlord-Mutant | -5/Factory Botlord-Mutant | -5/Garrison Botlord-Mutant | -4/Factory Botlord-Mutant | -4/Garrison Botlord-Mutant | -4/Factory Botlord-Mutant | -4/Garrison Botlord-Mutant | -3/Research Botlord-Mutant | -3/Garrison Botlord-Mutant | -3/Research Botlord-Mutant | -3/Quarantine Botlord-Mutant | -3/Garrison Botlord-Mutant | -2/Research Botlord-Mutant | -2/Testing Botlord-Mutant | -2/Garrison Botlord-Mutant | -1/Access Botlord-Gunner | -1/Garrison Botlord-Tank | -1/Access Botlord-Tank | -1/Command Resources | -11 -10 -10 -9 -9 -8 -8 -8 -8 -7 -7 -7 -7 -6 -6 -5 -5 -5 -5 -4 -4 -4 -4 -3 -3 -3 -3 -3 -2 -2 -2 -1 -1 -1 -1 ----------- Run | Yrd Mat Min Mat Min Mat Gar Mat Gar Fac Gar Fac Gar Fac Gar Fac Gar Fac Gar Fac Gar Fac Gar Res Gar Res Qua Gar Res Tes Gar Acc Gar Acc Com Matter Collected 23325 | 240 270 67 492 20 447 408 172 1086 403 691 583 929 841 1256 324 604 86 666 225 554 236 1667 728 858 1028 677 1057 3112 418 502 14 293 750 1621 Remotely 3719 | . . . . . . . . . . 62 160 295 . . . . . . . . . 136 465 98 226 . . 748 322 250 . . 507 450 Salvage Created 33131 | 121 630 147 2066 250 1728 784 1235 1247 274 209 578 830 679 1046 806 1361 157 1058 313 768 484 1712 973 1460 667 602 1035 3822 1112 1385 . 1178 795 1619 Parts 1528 | 4 42 17 102 15 90 24 65 77 13 7 36 47 29 44 26 77 8 37 15 33 27 70 46 71 42 33 45 157 30 55 . 45 32 67 Haulers Intercepted 27 | . 2 . 5 . 3 . 6 . 2 . 1 . 1 . 4 . 1 . . . . . 2 . . . . . . . . . . . Recyclers Shooed 13 | 1 . . . . 1 . . . . . . . . . . . . . . . . . 3 . . 1 . 2 1 . . . . 4 Parts Field Recycled . | . . . . . . . . . . . . . . . . . . . . . . . . . . . . . . . . . . . Retrieved Matter . | . . . . . . . . . . . . . . . . . . . . . . . . . . . . . . . . . . . Parts Self-Destructed . | . . . . . . . . . . . . . . . . . . . . . . . . . . . . . . . . . . . Prevented . | . . . . . . . . . . . . . . . . . . . . . . . . . . . . . . . . . . . Kills | -11 -10 -10 -9 -9 -8 -8 -8 -8 -7 -7 -7 -7 -6 -6 -5 -5 -5 -5 -4 -4 -4 -4 -3 -3 -3 -3 -3 -2 -2 -2 -1 -1 -1 -1 ------- Run | Yrd Mat Min Mat Min Mat Gar Mat Gar Fac Gar Fac Gar Fac Gar Fac Gar Fac Gar Fac Gar Fac Gar Res Gar Res Qua Gar Res Tes Gar Acc Gar Acc Com Combat Hostiles Destroyed 515 | . 11 8 31 5 33 19 13 35 7 5 11 25 16 20 5 21 1 17 4 15 8 29 8 27 9 7 13 55 8 18 . 5 10 16 Melee 3 | . . . . . 1 . . . . . . . . . . . . . . . . 2 . . . . . . . . . . . . Guns 71 | . 9 2 26 4 7 8 2 1 . . . . . 2 . . . . . . . 3 . . . . . . . . . . 3 4 Cannons 257 | . . . 3 . . 2 10 17 2 5 11 15 15 13 5 17 . 9 4 5 8 13 7 14 7 6 7 37 1 10 . 2 7 5 AOE 128 | . 2 6 1 1 21 8 . 17 5 . . 10 1 5 . 2 1 8 . 7 . 9 . 9 1 . 5 9 . . . . . . Classes Destroyed 23 | 2 5 1 4 1 . . 2 2 . . . . . . . . . . . . 1 1 . 1 1 1 . . . . . . . 1 Worker 20 | . 1 1 1 1 6 . 1 . 1 . . . . . 3 . . . . . . . . . 1 . . 2 1 . . . . 1 Builder 10 | . 1 1 . . 1 . . . . . . . . . . . 1 . . . . . 1 . 1 . . 2 . . . . 2 . Tunneler 4 | 3 . . . . . . . . . . . . . . . . . . . . 1 . . . . . . . . . . . . . Hauler 27 | . 2 . 5 . 3 . 6 . 2 . 1 . 1 . 4 . 1 . . . . . 2 . . . . . . . . . . . Recycler 17 | 1 . . 1 . 4 . 1 . . . 1 . 1 . 1 . . . . . . . 1 . . . . 1 3 . . . 1 1 Mechanic 2 | . . . 1 . . . . . . . . . . . . . . . . . . . . . . . . 1 . . . . . . Operator 8 | . . . 2 . 3 . 1 . . . . . . . . . . . . . . . 1 . . . . 1 . . . . . . Watcher 19 | . 2 . 4 . 3 . 2 . . . 2 1 . . 2 . . . . . . 1 . . 1 1 . . . . . . . . Swarmer 91 | . . 6 . . 8 4 . 9 . . 5 11 4 4 . . . 3 2 4 . 11 . 6 . . 7 . . 3 . 2 2 . Cutter 14 | . . . . . . . . 2 . . . . . . . 3 . . . . . 2 . 7 . . . . . . . . . . Saboteur 3 | . . . . . . . . . . . . . . . . . . . . . . . . 2 . . . 1 . . . . . . Grunt 187 | . 11 2 23 4 21 12 5 12 5 3 1 11 4 5 2 8 1 7 2 6 3 6 . 3 . . . 19 5 6 . . . . Brawler 11 | . . . 1 . . 2 . 1 . . . 2 . . . 1 . . . . . 1 . . . . . 3 . . . . . . Duelist 16 | . . . . 1 . . 1 1 . . . . 1 2 . . . . . 2 . . . 1 . . . 6 1 . . . . . Protector 2 | . . . . . . . . . . . . . . . . . . . . . . . . . 1 . . 1 . . . . . . Sentry 56 | . . . 7 . 4 1 5 7 . 1 2 4 2 1 . 3 . 1 . 1 . 4 1 4 1 . . 3 . . . . 3 1 Specialist 5 | . . . . . . . . . . . . . . . . . . . . . . . . . . 5 . . . . . . . . Hunter 45 | . . . . . . . 1 1 1 2 2 . 1 4 1 . . 1 . . . . 2 1 . . 4 6 . 7 . 2 4 5 Programmer 83 | . . . . . . . 1 2 1 . 1 1 4 4 2 5 . 5 2 . 4 4 5 4 6 2 2 15 1 3 . . 3 6 Heavy 3 | . . . . . . . . . . . . . . . . . . . . . 1 . . . 1 . . 1 . . . . . . Behemoth 9 | . . . . . . . . 1 . . . . . . . 1 . . . 2 . 1 . 1 . . 1 1 . . . 1 . . M Guard 2 | . . . . . . . . . . . . . . . . . . . . . . . . . . . . . . . . . . 2 Combat Programmer 2 | . . . . . . . . . . . . . . . . . . . . . . . . . . . . . . . . . . 2 Striker 1 | . . . . . . . . . . . . . . . . . . . . . . 1 . . . . . . . . . . . . Alpha 7 1 | . . . . . . . . . . . . . . . . . . . . . . . . . . . . . . . . . . 1 Protovariant Y 1 | . . . . . . . . . . . . . . . . . . . . . . . . . . . . . 1 . . . . . Thug 2 | . . . . . . . . . . . . . . 1 . . . . . . . 1 . . . . . . . . . . . . Best Kill Streak 14 | 3 2 4 7 3 14 4 3 8 6 2 9 7 6 5 4 3 2 10 2 7 4 5 3 7 5 5 5 7 4 8 . 2 4 4 Combat Bots Only 10 | . 2 3 6 3 4 4 3 8 5 2 9 7 6 5 3 3 1 10 2 7 4 5 3 7 4 5 5 6 4 8 . 2 4 3 Max Kills in Single Turn 5 | 1 2 3 1 1 4 2 2 4 3 1 1 5 1 2 4 2 2 2 1 4 1 2 1 4 2 1 2 5 1 1 . 1 2 2 Gunslinging . | . . . . . . . . . . . . . . . . . . . . . . . . . . . . . . . . . . . Exploded 5 | . 1 2 1 1 2 2 . 4 3 . . 5 1 2 . 2 1 2 . 4 . 2 . 4 1 . 2 3 . . . . . . Melee 1 | . . . . . 1 . . . . . . . . . . . . . . . . 1 . . . . . . . . . . . . Uniques/NPCs Destroyed . | . . . . . . . . . . . . . . . . . . . . . . . . . . . . . . . . . . . Combat | -11 -10 -10 -9 -9 -8 -8 -8 -8 -7 -7 -7 -7 -6 -6 -5 -5 -5 -5 -4 -4 -4 -4 -3 -3 -3 -3 -3 -2 -2 -2 -1 -1 -1 -1 -------- Run | Yrd Mat Min Mat Min Mat Gar Mat Gar Fac Gar Fac Gar Fac Gar Fac Gar Fac Gar Fac Gar Fac Gar Res Gar Res Qua Gar Res Tes Gar Acc Gar Acc Com Hostile Shots Fired 3591 | . 67 27 110 13 97 68 39 267 22 30 49 133 148 150 79 128 13 87 13 114 48 295 72 95 51 113 95 292 27 204 2 38 235 370 Missed 1003 | . 16 5 33 2 33 23 13 78 6 11 14 44 47 35 23 34 2 23 3 30 14 89 22 25 7 22 39 62 3 50 1 12 55 127 Damage Taken 42785 | . 663 296 1051 213 1026 785 424 3304 190 276 447 859 1415 2369 688 1109 164 732 219 1511 636 4071 822 1196 656 1445 1223 4631 561 1996 45 421 2691 4650 Core 4382 | . 105 14 113 . 121 53 32 114 13 . 25 23 151 340 65 76 27 107 . 168 87 393 39 44 23 87 318 807 18 213 . 30 624 152 Absorbed by Shields 11751 | . . . . . . 28 . 187 72 10 . 324 66 244 387 464 40 464 . 417 235 889 436 632 345 508 499 1271 34 1571 . 258 1302 1068 Reduced by Siege Mode 989 | . . . . . . . . . . . . . . . 5 . . . . . . 197 30 . 57 93 17 111 57 135 . . 97 190 Redirected to Core 1434 | . . . . . . . . . . . . . . . . . . . . . . . . . . . 273 559 . . . 4 576 22 Redirected to Shielding 85 | . . . . . . . . . . . . . . . . . . . . . . . . . . . . . . . . 13 72 . Ignored by Resistances 1776 | . . . . . . . . . . . . . . . . . . . . . . . . . . . . 416 . . . . . 1360 Regen/Repaired (Parts) 1335 | . 161 . 206 . . . . . . . . . . . . . . . . . . . 771 . . 125 . . . . . . . 72 Core Remaining (%) 58 | 100 . 52 . 71 . . . 41 . . . 91 . 42 . . . 72 . . . 43 . . . . 60 . . 28 . . . 38 Volleys Fired 2050 | 7 76 17 93 11 89 44 44 108 36 27 36 60 54 118 37 58 17 38 21 36 26 119 76 69 42 32 80 234 44 84 . 69 50 98 Largest 2 | 2 2 2 2 2 2 2 2 2 2 2 2 2 1 2 2 2 2 2 2 2 1 2 2 2 2 2 2 2 1 1 . 2 2 2 Hottest 300 | 90 140 80 106 90 145 101 112 138 122 122 122 87 75 118 180 180 171 179 186 176 88 153 240 240 240 240 240 207 105 105 . 120 120 300 Shots Fired 2759 | 14 147 26 177 22 140 81 82 176 41 34 67 73 57 143 62 95 23 51 25 47 26 133 89 100 59 50 92 236 45 78 . 73 78 117 Gun 714 | 14 139 18 150 22 98 64 9 30 . . . . . 88 1 . . . . . . 28 . . . . . . . . . 3 28 22 Cannon 1634 | . . . 22 . 13 10 73 125 13 24 67 67 49 39 53 86 18 37 16 29 18 89 57 74 48 45 68 197 44 68 . 61 46 78 Launcher 119 | . 3 8 . . 23 7 . 20 5 . . 4 . 3 . 1 . 7 . 4 . 7 . 4 . . 4 19 . . . . . . Special 292 | . 5 . 5 . 6 . . 1 23 10 . 2 8 13 8 8 5 7 9 14 8 9 32 22 11 5 20 20 1 10 . 9 4 17 Kinetic 618 | . . . . . . . . 68 13 24 50 53 49 121 1 . 6 8 5 2 8 77 . . 18 . . . . . . 9 74 32 Thermal 708 | 14 91 . 5 . 6 . 2 36 . . 17 14 . 6 36 24 6 11 2 . . . 49 53 30 33 61 115 11 38 . 32 . 16 Explosive 118 | . 3 8 . . 23 7 . 20 5 . . 4 . 2 . 1 . 7 . 4 . 7 . 4 . . 4 19 . . . . . . Electromagnetic 1040 | . 53 18 172 22 111 74 80 52 . . . . . 1 17 62 6 18 9 27 10 40 8 21 . 12 7 82 33 30 . 23 . 52 Robot Hit Streak 42 | 7 13 5 26 5 9 14 10 13 12 3 12 16 17 28 7 28 9 9 7 11 10 42 13 21 7 16 31 14 13 14 . 20 28 12 Robot Miss Streak 9 | 2 5 2 3 1 4 3 2 3 2 3 2 1 4 3 4 2 2 1 3 4 1 3 4 9 2 1 6 4 3 3 . 2 5 3 Penetration Max 2 | . . . . . . . . . . . . . . 1 . . . . . . . . . . . . . . . . . . 1 2 Secondary Targets 4 | . . 1 2 1 . . . . . . . . . . . . . . . . . . . . . . . . . . . . . . Max Gunslinging Chain 1 | . . 1 1 1 . . . . . . . . . . . . . . . . . . . . . . . . . . . . . . Capacitor 389 | . . . . . . . . . . . . . . . . . . . . . . . . . . . . 194 44 68 . 55 . 28 Shots Hit Robots 1900 | 8 95 12 141 20 98 60 60 117 22 15 37 53 42 115 39 68 13 31 16 30 21 100 55 65 38 34 61 154 32 52 . 62 49 85 Core Hits 1050 | 5 34 13 79 12 75 45 33 60 20 8 20 36 18 41 21 32 5 42 6 28 10 57 14 46 11 11 27 111 12 21 1 26 35 35 Critical Kills 28 | . . . . . . . . 6 4 4 6 . . . . . . . . . . . . 1 4 . . 1 . 2 . . . . Critical Parts Destroyed 27 | . . . . . . . . 12 2 2 4 . . 2 . . . . . . . 1 . . 1 . . . . . . . . 3 Critical Strikes 96 | 1 2 . 2 . 2 . . 20 6 6 13 5 7 3 . 1 . . . . 1 3 . 2 7 1 . 5 1 2 . . 1 5 Burn 2 | 1 1 . . . . . . . . . . . . . . . . . . . . . . . . . . . . . . . . . Meltdown 5 | . . . . . . . . . . . . . . . . . . . . . . . . 1 1 . . 1 . 2 . . . . Destroy 55 | . . . . . . . . 19 6 6 11 . . 2 . . . . . . . 1 . . 6 . . . . . . . . 4 Blast 20 | . . . . . . . . . . . 2 5 7 1 . . . . . . 1 2 . . . . . . . . . . 1 1 Corrupt 14 | . 1 . 2 . 2 . . 1 . . . . . . . 1 . . . . . . . 1 . 1 . 4 1 . . . . . Melee Attacks 7 | . . . . . . . . 7 . . . . . . . . . . . . . . . . . . . . . . . . . . Impact . | . . . . . . . . . . . . . . . . . . . . . . . . . . . . . . . . . . . Slashing . | . . . . . . . . . . . . . . . . . . . . . . . . . . . . . . . . . . . Piercing . | . . . . . . . . . . . . . . . . . . . . . . . . . . . . . . . . . . . Sneak Attacks . | . . . . . . . . . . . . . . . . . . . . . . . . . . . . . . . . . . . Combat Hostiles . | . . . . . . . . . . . . . . . . . . . . . . . . . . . . . . . . . . . Follow-up Attacks . | . . . . . . . . . . . . . . . . . . . . . . . . . . . . . . . . . . . Damage Inflicted 73886 | 101 1367 509 2546 409 4382 1699 1731 3592 789 184 829 3425 2396 4321 1648 2216 381 2142 346 1628 840 4658 1375 3204 1099 1253 2512 9660 1314 1783 15 1805 2444 5283 Guns 10151 | 101 1265 175 1936 292 1327 734 129 400 . . . . . 1719 . . . . . . . 426 . . . . . . . . . 46 719 882 Cannons 45510 | . . . 374 . 174 181 1284 1758 98 184 695 2569 2388 1962 1301 2031 255 1002 346 639 820 3050 1335 1987 1099 1183 2019 5845 1314 1783 . 1759 1725 4350 Explosions 17774 | . 90 333 210 105 2866 784 318 1434 691 . 134 856 8 640 347 185 120 1140 . 989 . 1143 . 1217 . 70 493 3601 . . . . . . Melee . | . . . . . . . . . . . . . . . . . . . . . . . . . . . . . . . . . . . Ramming 451 | . 12 1 26 12 15 . . . . . . . . . . . 6 . . . 20 39 40 . . . . 214 . . 15 . . 51 Kinetic 17448 | . . . . . . . . 860 98 184 416 2324 2388 3619 . . . 228 88 79 502 2379 . . 127 . . . . . . 247 2444 1465 Thermal 19784 | 101 763 . 210 105 450 249 171 700 . . 279 245 . 62 963 722 234 244 34 . . . 1111 1320 972 854 1858 3507 131 930 . 1114 . 2455 Explosive 15957 | . 90 333 . . 2416 535 177 1357 691 . . 856 . 445 289 185 . 1140 . 989 . 1143 . 1217 . . 493 3601 . . . . . . Electromagnetic 20246 | . 502 175 2310 292 1501 915 1383 675 . . 134 . 8 195 396 1309 141 530 224 560 318 1097 224 667 . 399 161 2338 1183 853 . 444 . 1312 Impact . | . . . . . . . . . . . . . . . . . . . . . . . . . . . . . . . . . . . Slashing . | . . . . . . . . . . . . . . . . . . . . . . . . . . . . . . . . . . . Piercing . | . . . . . . . . . . . . . . . . . . . . . . . . . . . . . . . . . . . Highest Corruption 75 | . . 5 . . . . . 4 2 3 3 . 3 10 1 4 4 32 1 3 7 75 1 4 16 25 27 14 19 50 . 10 13 42 Average Corruption 11 | . . 4 . . . . . 2 2 2 2 . 2 6 1 3 4 8 1 1 3 44 1 3 7 18 26 7 16 35 . 8 11 17 Corruption Purged 5 | . . . . . . . . . . . 4 . . . . . . . . . . . 1 . . . . . . . . . . . Corruption Blocked . | . . . . . . . . . . . . . . . . . . . . . . . . . . . . . . . . . . . Effects 902 | . . . . . . . . 2 2 10 24 . 22 55 5 35 8 48 1 11 10 108 2 36 38 57 93 81 28 70 . 6 41 109 Message Errors 204 | . . . . . . . . 1 . . 6 . 9 7 . 8 2 12 . 3 4 25 1 8 6 15 20 20 12 11 . . 6 28 Matter Fused 200 | . . . . . . . . . 1 6 4 . 5 10 2 11 1 13 . 1 2 23 . 6 12 10 26 17 3 14 . 2 6 25 Heat Flow Errors 96 | . . . . . . . . 1 . 1 3 . 2 10 . 6 2 5 . 2 3 9 . 3 3 5 11 6 4 6 . 1 4 9 Energy Discharges 105 | . . . . . . . . . 1 . 2 . . 6 1 1 . 6 . 1 . 10 . 8 6 8 13 12 1 8 . . 9 12 Parts Rejected 11 | . . . . . . . . . . . . . . 1 . . . . . . . 1 . . . 1 . 2 . 3 . . 1 2 Parts Fused 8 | . . . . . . . . . . . 1 . . 1 . . 1 1 . . . 1 . . . . . . . 1 . . 1 1 Data Loss (minor) 117 | . . . . . . . . . . 3 2 . 3 8 1 4 2 8 1 3 . 15 1 7 7 7 8 10 . 14 . 2 7 4 Data Loss (major) 35 | . . . . . . . . . . . 1 . . 4 . 2 . 1 . . 1 4 . 1 2 1 6 1 1 2 . . 1 7 Misfires 48 | . . . . . . . . . . . 3 . 3 4 1 1 . 2 . . . 2 . 3 2 3 1 5 4 2 . 1 3 8 Alerts 23 | . . . . . . . . . . . 1 . . 2 . 2 . . . 1 . 1 . . . 5 3 1 . . . . 2 5 Misdirections 12 | . . . . . . . . . . . . . . 1 . . . . . . . 3 . . . . 1 2 . 1 . . . 4 Weapon Failures 43 | . . . . . . . . . . . 1 . . 1 . . . . . . . 14 . . . 2 4 5 3 8 . . 1 4 Overload Shots . | . . . . . . . . . . . . . . . . . . . . . . . . . . . . . . . . . . . Overflow Damage 2353 | . . 42 2 . 186 17 31 15 7 . 2 186 255 152 38 31 . 2 . . 74 206 41 70 108 68 59 257 42 96 . . 140 226 Projectiles 1747 | . . . . . 17 6 . 15 . . 2 151 255 152 5 10 . . . . 74 161 11 7 108 53 46 197 42 96 . . 140 199 Explosions 524 | . . 42 . . 169 11 31 . 7 . . 35 . . 33 21 . 2 . . . 45 . 63 . 15 13 37 . . . . . . Melee 82 | . . . 2 . . . . . . . . . . . . . . . . . . . 30 . . . . 23 . . . . . 27 Knockbacks 78 | . 1 . 1 . . . . 4 1 2 1 12 9 9 . . 1 1 . . 2 17 . . 1 . . 1 . . . 1 7 7 Impact 5 | . 1 . 1 . . . . . . . . . . . . . 1 . . . . . . . . . . 1 . . . . . 1 Kinetic 71 | . . . . . . . . 4 1 2 1 11 9 8 . . . 1 . . 2 17 . . 1 . . . . . . 1 7 6 Secondary 2 | . . . . . . . . . . . . 1 . 1 . . . . . . . . . . . . . . . . . . . . Self-Inflicted Damage 987 | . . 11 . 72 134 78 . 80 . . . . 31 151 111 63 . . . . . 50 . . . 67 . 139 . . . . . . Shots 27 | . . 1 . 2 4 5 . 4 . . . . 1 3 1 1 . . . . . 1 . . . 1 . 3 . . . . . . Rammed 28 | . 3 1 2 . 2 . . . . . . . . . . . 1 . . . 1 4 1 . . . . 11 . . 1 . . 1 Targets Rammed 34 | . 3 1 3 1 3 . . . . . . . . . . . 1 . . . 1 6 1 . . . . 12 . . 1 . . 1 Kicked . | . . . . . . . . . . . . . . . . . . . . . . . . . . . . . . . . . . . Crushed 6 | . . . 1 1 1 . . . . . . . . . . . . . . . . 2 . . . . . 1 . . . . . . Highest Temperature 945 | 120 219 258 222 258 220 249 452 272 . 220 130 210 258 273 322 469 196 263 48 577 225 254 320 372 234 166 458 945 330 310 . 273 151 427 Average Temperature 90 | 46 83 147 49 115 48 83 69 61 . 109 67 54 52 84 89 105 83 107 24 122 82 64 121 136 75 58 122 128 113 94 . 114 32 82 Received Heat Transfer 7640 | . 384 114 513 81 441 312 162 803 36 126 12 124 198 142 117 176 89 110 12 210 111 375 66 116 4 276 422 1663 81 97 . 12 63 192 Effects 35 | . . . . . . . . . . . . . . . . 5 . 3 . 2 . . . 2 . . 9 8 2 . . . . 4 Shutdowns 14 | . . . . . . . . . . . . . . . . 2 . . . 2 . . . . . . 4 5 . . . . . 1 Energy Bleed 3 | . . . . . . . . . . . . . . . . . . . . . . . . 1 . . 2 . . . . . . . Interference 11 | . . . . . . . . . . . . . . . . 3 . 3 . . . . . . . . . . 2 . . . . 3 Matter Decay 4 | . . . . . . . . . . . . . . . . . . . . . . . . . . . 2 2 . . . . . . Short Circuit 3 | . . . . . . . . . . . . . . . . . . . . . . . . 1 . . 1 1 . . . . . . Siege Activations 49 | . . . . . . . . . . . . . . . 1 . . 1 1 . 2 3 2 1 2 1 2 14 1 4 . 1 3 10 Total Turns 719 | . . . . . . . . . . . . . . . 6 . . 1 2 . 13 66 26 8 22 31 23 114 14 59 . 6 50 278 Longest Duration 130 | . . . . . . . . . . . . . . . 6 . . 1 2 . 9 44 13 8 17 31 18 17 14 38 . 6 36 130 Robots Corrupted 65 | . 1 . 2 . 5 1 2 . . . . . . . . 3 . 3 1 3 . 6 1 3 . 1 1 9 8 5 . 3 . 7 Combat Hostiles 51 | . . . 1 . 4 1 1 . . . . . . . . 3 . . . 3 . 2 1 3 . 1 1 8 7 5 . 3 . 7 Parts Fried 158 | . 1 2 7 . 15 4 10 2 . . 1 . . 2 . 5 . 7 3 3 1 18 4 4 . 3 3 18 17 4 . 5 . 19 Impact Corruptions 5 | . . . 1 . . . . . . . . . . . . . . . . . . . 1 . . . . 2 . . . . . 1 Robots Melted 7 | . . . . . . . . . . . . . . . . . . . . . . . . 1 1 . . 1 . 3 . . . 1 Combat Hostiles 6 | . . . . . . . . . . . . . . . . . . . . . . . . 1 1 . . 1 . 3 . . . . Parts Melted 41 | . 4 . . . . . . . . . 1 . . . 1 1 . 1 . . 1 . 1 2 8 1 3 3 1 11 . 1 1 . Heat Transferred 15741 | 346 2107 . 350 50 400 250 87 1005 . . 370 255 . 100 100 . 50 350 50 . . . 888 997 721 679 1443 2738 111 925 . 1147 . 222 Parts Sabotaged . | . . . . . . . . . . . . . . . . . . . . . . . . . . . . . . . . . . . Parts Stolen . | . . . . . . . . . . . . . . . . . . . . . . . . . . . . . . . . . . . Parts Stripped . | . . . . . . . . . . . . . . . . . . . . . . . . . . . . . . . . . . . Power Chain Reactions 26 | . . . 5 2 6 4 3 2 . . . . 1 . 1 . 1 . . . . . . . . 1 . . . . . . . . Alert | -11 -10 -10 -9 -9 -8 -8 -8 -8 -7 -7 -7 -7 -6 -6 -5 -5 -5 -5 -4 -4 -4 -4 -3 -3 -3 -3 -3 -2 -2 -2 -1 -1 -1 -1 ------- Run | Yrd Mat Min Mat Min Mat Gar Mat Gar Fac Gar Fac Gar Fac Gar Fac Gar Fac Gar Fac Gar Fac Gar Res Gar Res Qua Gar Res Tes Gar Acc Gar Acc Com Peak Influence 2233 | 20 207 221 538 331 837 1080 826 1500 982 408 324 986 544 1082 886 1616 1027 1300 682 1544 963 1768 1000 1813 1021 551 1473 2233 1380 1493 913 1163 834 524 Initial 1255 | . 13 55 . 184 . 544 526 464 787 117 214 198 517 295 567 569 848 624 682 348 810 630 994 301 1019 434 220 828 1255 1014 883 650 697 524 Average 687 | 6 86 67 315 125 382 825 673 958 814 273 117 624 409 638 749 1057 907 1059 490 1093 833 1275 648 1120 674 373 687 1194 1285 1291 895 864 689 186 Maximum Alert Level 5 | . 1 1 2 1 3 3 3 4 3 2 1 3 2 3 3 5 3 4 2 4 3 5 3 5 3 2 4 5 4 4 3 4 3 2 Low Security (%) 17 | 100 93 90 26 70 28 . . . . 40 70 1 . . . . . . . . . . . . . . . . . . . . . 73 Level 1 13 | . 6 9 35 29 25 . . . 3 40 29 12 57 13 . . . . 31 . . . 32 8 . 64 19 . . . . . . 17 Level 2 21 | . . . 37 . 34 17 52 25 2 19 . 40 42 51 24 16 . 11 68 12 . 5 13 12 54 35 44 . . . . 31 61 9 Level 3 28 | . . . . . 11 82 47 42 93 . . 45 . 34 75 39 100 39 . 26 100 22 54 13 45 . 14 53 . 27 100 43 38 . Level 4 17 | . . . . . . . . 32 . . . . . . . 42 . 48 . 59 . 58 . 54 . . 21 24 100 72 . 25 . . Level 5 2 | . . . . . . . . . . . . . . . . . . . . . . 13 . 11 . . . 19 . . . . . . High Security . | . . . . . . . . . . . . . . . . . . . . . . . . . . . . 2 . . . . . . Max Security . | . . . . . . . . . . . . . . . . . . . . . . . . . . . . . . . . . . . Squads Dispatched 109 | . 3 . 6 . 6 . 2 . 4 . 5 . 9 . 9 . 5 . 3 . 4 . 5 . 7 1 . 22 3 . 2 . 7 6 Investigation 30 | . 2 . 3 . 2 . . . 2 . 3 . 4 . 4 . 1 . 1 . 1 . 2 . 1 . . 2 1 . 1 . . . Extermination 20 | . . . . . . . . . 1 . 1 . 4 . 1 . . . . . 1 . 1 . 2 1 . 3 . . . . 1 4 Reinforcement 26 | . 1 . 3 . 4 . 1 . 1 . . . 1 . 2 . 1 . 1 . 1 . 2 . 1 . . 5 . . . . . 2 Assault 21 | . . . . . . . 1 . . . . . . . 2 . 1 . . . 1 . . . 3 . . 10 2 . . . 1 . Garrison 12 | . . . . . . . . . . . 1 . . . . . 2 . 1 . . . . . . . . 2 . . 1 . 5 . Intercept . | . . . . . . . . . . . . . . . . . . . . . . . . . . . . . . . . . . . Searches Triggered . | . . . . . . . . . . . . . . . . . . . . . . . . . . . . . . . . . . . Construction Impeded 3 | . . . . . 1 . . . . . . . . . 1 . . . . . . . . . . . . 1 . . . . . . Haulers Reinforced 1 | . . . . . . . . . . . . . . . 1 . . . . . . . . . . . . . . . . . . . Active Scanning Responses . | . . . . . . . . . . . . . . . . . . . . . . . . . . . . . . . . . . . Cargo Convoy Interrupts 1 | . . . . . . . . . . . . . . . 1 . . . . . . . . . . . . . . . . . . . Stealth | -11 -10 -10 -9 -9 -8 -8 -8 -8 -7 -7 -7 -7 -6 -6 -5 -5 -5 -5 -4 -4 -4 -4 -3 -3 -3 -3 -3 -2 -2 -2 -1 -1 -1 -1 --------- Run | Yrd Mat Min Mat Min Mat Gar Mat Gar Fac Gar Fac Gar Fac Gar Fac Gar Fac Gar Fac Gar Fac Gar Res Gar Res Qua Gar Res Tes Gar Acc Gar Acc Com Distress Signals 32 | . 3 1 5 . 1 . 2 . 1 . . . 1 . 2 . . 1 3 . . . 1 . 1 1 . 6 1 . . . . 2 Communications Jammed 223 | . . . . . . . . . . . . . . . . . . . . . . . . . 12 11 12 151 3 . . . 34 . Distress Signals 221 | . . . . . . . . . . . . . . . . . . . . . . . . . 12 11 12 151 1 . . . 34 . Times Spotted 1073 | . 29 6 43 4 48 21 25 52 17 9 14 34 25 41 29 32 10 33 11 61 22 42 28 68 31 14 51 116 13 39 2 28 34 41 Peak Tracking Total 13 | . 3 3 5 3 7 4 7 8 5 3 4 8 8 10 6 6 4 7 5 12 5 7 6 10 6 4 13 10 5 13 1 6 6 4 Tactical Retreats 48 | . 7 1 5 . 1 1 1 6 . . 1 . . 1 2 3 . 1 1 2 1 5 1 2 1 . 1 2 . . . . . 2 Traps | -11 -10 -10 -9 -9 -8 -8 -8 -8 -7 -7 -7 -7 -6 -6 -5 -5 -5 -5 -4 -4 -4 -4 -3 -3 -3 -3 -3 -2 -2 -2 -1 -1 -1 -1 ------- Run | Yrd Mat Min Mat Min Mat Gar Mat Gar Fac Gar Fac Gar Fac Gar Fac Gar Fac Gar Fac Gar Fac Gar Res Gar Res Qua Gar Res Tes Gar Acc Gar Acc Com Traps Triggered 82 | . 1 1 4 . . 6 . 10 2 7 1 4 2 4 . 7 1 4 1 1 . 4 . 6 1 1 4 5 1 2 . 1 . 1 Indirectly . | . . . . . . . . . . . . . . . . . . . . . . . . . . . . . . . . . . . Trap Hack Attempts . | . . . . . . . . . . . . . . . . . . . . . . . . . . . . . . . . . . . Triggered . | . . . . . . . . . . . . . . . . . . . . . . . . . . . . . . . . . . . Disarmed . | . . . . . . . . . . . . . . . . . . . . . . . . . . . . . . . . . . . Reprogrammed . | . . . . . . . . . . . . . . . . . . . . . . . . . . . . . . . . . . . Reused 4 | . . . . . . 2 . 2 . . . . . . . . . . . . . . . . . . . . . . . . . . Traps Extracted . | . . . . . . . . . . . . . . . . . . . . . . . . . . . . . . . . . . . Installed 4 | . . . . . . 2 . 2 . . . . . . . . . . . . . . . . . . . . . . . . . . Triggered 8 | . 1 . . . . 2 . 2 . . . . . . 1 . . . . . . . . . . . 2 . . . . . . . Most Traps Carried 5 | . . . . 3 3 5 4 3 1 1 1 . . . . . . . . . . . . . . . . . . . . . . . Machines | -11 -10 -10 -9 -9 -8 -8 -8 -8 -7 -7 -7 -7 -6 -6 -5 -5 -5 -5 -4 -4 -4 -4 -3 -3 -3 -3 -3 -2 -2 -2 -1 -1 -1 -1 ---------- Run | Yrd Mat Min Mat Min Mat Gar Mat Gar Fac Gar Fac Gar Fac Gar Fac Gar Fac Gar Fac Gar Fac Gar Res Gar Res Qua Gar Res Tes Gar Acc Gar Acc Com Machines Disabled 61 | . 1 . . 1 10 . 4 1 . 1 2 3 3 1 2 4 2 . . . 2 2 . 4 1 6 1 3 1 2 . 1 2 1 Max in Single Turn 3 | . 1 . . 1 1 . 3 1 . 1 2 1 2 1 1 1 . . . . . 1 . 1 1 1 . 1 1 1 . 1 1 1 Garrison Access 6 | . . . . . . . . . . . 2 . 1 . . . . . . . . . . . 1 . . 2 . . . . . . Garrison Relay 52 | . . . . . . 2 . 7 . 1 . 5 . 3 . 3 . 3 . 7 . 3 . 8 . . 6 . . 3 . 1 . . Phase Generator 2 | . . . . . . . . . . 1 . . . . . 1 . . . . . . . . . . . . . . . . . . Energy Cycler 1 | . . . . . . . . . . . . . . . . . . . . . . . . . . . . . . . . . 1 . Machines Repaired . | . . . . . . . . . . . . . . . . . . . . . . . . . . . . . . . . . . . Machines Dismantled 50 | . . . . . . 6 . 7 . 1 . 3 . 3 . 5 . 3 . 8 . 3 . 5 . . 5 . . 1 . . . . Machines Sabotaged . | . . . . . . . . . . . . . . . . . . . . . . . . . . . . . . . . . . . Overloaded Fab Kills . | . . . . . . . . . . . . . . . . . . . . . . . . . . . . . . . . . . . Hacking | -11 -10 -10 -9 -9 -8 -8 -8 -8 -7 -7 -7 -7 -6 -6 -5 -5 -5 -5 -4 -4 -4 -4 -3 -3 -3 -3 -3 -2 -2 -2 -1 -1 -1 -1 --------- Run | Yrd Mat Min Mat Min Mat Gar Mat Gar Fac Gar Fac Gar Fac Gar Fac Gar Fac Gar Fac Gar Fac Gar Res Gar Res Qua Gar Res Tes Gar Acc Gar Acc Com Machines Accessed 128 | . 8 1 10 1 6 2 7 3 4 2 10 3 8 2 5 2 1 2 3 2 5 3 7 2 4 8 1 8 4 1 1 . . 2 Terminals 85 | . 6 . 5 1 4 2 5 3 1 2 6 3 2 2 2 2 . 2 1 2 3 3 4 2 4 6 1 6 2 1 . . . 2 Fabricators 6 | . . . . . . . . . 1 . . . 1 . 1 . . . 1 . 1 . . . . . . 1 . . . . . . Repair Stations 10 | . 1 . 2 . . . . . . . . . 2 . 1 . . . . . . . 2 . . 1 . . 1 . . . . . Recycling Units 4 | . 1 . 1 . . . . . 1 . . . 1 . . . . . . . . . . . . . . . . . . . . . Scanalyzers 5 | . . . 2 . 1 . 1 . . . 1 . . . . . . . . . . . . . . . . . . . . . . . Garrison Access 17 | . . . . . 1 . 1 . 1 . 3 . 2 . 1 . 1 . 1 . 1 . 1 . . 1 . 1 1 . 1 . . . Total Hacks 298 | . 27 1 28 3 22 5 21 7 13 4 21 9 18 2 12 4 2 2 7 7 10 6 13 4 6 11 3 17 8 1 2 . . 2 Successful 133 | . 12 1 19 2 13 . 11 2 7 1 12 1 10 2 5 1 2 2 2 2 3 1 3 1 1 7 1 4 2 . 2 . . 1 Failed 165 | . 15 . 9 1 9 5 10 5 6 3 9 8 8 . 7 3 . . 5 5 7 5 10 3 5 4 2 13 6 1 . . . 1 Catastrophic 29 | . 3 . . . 1 1 1 . . 1 2 1 . . 2 1 . . 1 1 2 1 2 1 2 2 . 2 1 1 . . . . Database Lockouts . | . . . . . . . . . . . . . . . . . . . . . . . . . . . . . . . . . . . Manual 71 | . 13 . 8 2 5 . 13 . 3 . 2 . 5 . 1 . 1 . 5 . 2 . 2 . . 1 . 4 3 . 1 . . . Terminals 192 | . 22 . 15 3 13 5 13 7 5 4 11 9 5 2 4 4 . 2 2 7 5 6 8 4 6 7 3 14 3 1 . . . 2 Fabricators 14 | . . . . . . . . . 3 . . . 4 . 3 . . . 1 . 2 . . . . . . 1 . . . . . . Repair Stations 26 | . 4 . 8 . . . . . . . . . 4 . 3 . . . . . . . 4 . . 2 . . 1 . . . . . Recycling Units 7 | . 1 . 1 . . . . . 3 . . . 2 . . . . . . . . . . . . . . . . . . . . . Scanalyzers 20 | . . . 4 . 7 . 6 . . . 3 . . . . . . . . . . . . . . . . . . . . . . . Garrison Access 38 | . . . . . 2 . 2 . 2 . 7 . 3 . 2 . 2 . 4 . 3 . 1 . . 2 . 2 4 . 2 . . . Terminal Hacks 47 | . 5 1 6 2 2 . 1 2 1 1 5 1 2 2 1 1 . 2 . 2 1 1 . 1 1 3 1 1 . . . . . 1 Record 4 | . . . . . . . . . . . 1 . . . . . . . . . . . . . . 3 . . . . . . . . Part Schematic 4 | . 1 . 2 1 . . . . . . . . . . . . . . . . . . . . . . . . . . . . . . Open Door 4 | . . 1 . . . . . . . . . . . 1 . . . . . . . . . . 1 . . . . . . . . 1 Branch Access Points 7 | . . . 1 . 1 . 1 . . . 1 . 1 . 1 . . . . . . . . . . . . 1 . . . . . . Emergency Access Points 8 | . . . . . . . . 1 . . 1 . . 1 . 1 . 1 . 1 . . . 1 . . 1 . . . . . . . Unreport Threat 1 | . . . . . . . . . . . . . 1 . . . . . . . . . . . . . . . . . . . . . Locate Traps 4 | . 2 . . . . . . . 1 . 1 . . . . . . . . . . . . . . . . . . . . . . . Maintenance Status 1 | . 1 . . . . . . . . . . . . . . . . . . . . . . . . . . . . . . . . . Patrol Status 2 | . 1 . . . . . . . . . . . . . . . . . . . 1 . . . . . . . . . . . . . Hauler Manifests 3 | . . . 1 . 1 . . . . . 1 . . . . . . . . . . . . . . . . . . . . . . . Zone Layout 3 | . . . 2 1 . . . . . . . . . . . . . . . . . . . . . . . . . . . . . . Garrison Registry 3 | . . . . . . . . 1 . . . . . . . . . . . 1 . 1 . . . . . . . . . . . . Patrol Navigation 2 | . . . . . . . . . . . . 1 . . . . . 1 . . . . . . . . . . . . . . . . Security Stations 1 | . . . . . . . . . . 1 . . . . . . . . . . . . . . . . . . . . . . . . Fabricator Hacks 9 | . . . . . . . . . 2 . . . 3 . 1 . . . 1 . 1 . . . . . . 1 . . . . . . Network Status 3 | . . . . . . . . . . . . . 1 . 1 . . . . . 1 . . . . . . . . . . . . . Load Schematic 2 | . . . . . . . . . 1 . . . 1 . . . . . . . . . . . . . . . . . . . . . Build 4 | . . . . . . . . . 1 . . . 1 . . . . . 1 . . . . . . . . 1 . . . . . . Repair Station Hacks 16 | . 4 . 6 . . . . . . . . . 1 . 1 . . . . . . . 2 . . 2 . . . . . . . . Scan Component 9 | . 2 . 3 . . . . . . . . . 1 . 1 . . . . . . . 1 . . 1 . . . . . . . . Repair 7 | . 2 . 3 . . . . . . . . . . . . . . . . . . . 1 . . 1 . . . . . . . . Recycling Unit Hacks 1 | . . . . . . . . . 1 . . . . . . . . . . . . . . . . . . . . . . . . . Retrieve Components 1 | . . . . . . . . . 1 . . . . . . . . . . . . . . . . . . . . . . . . . Scanalyzer 19 | . . . 4 . 7 . 6 . . . 2 . . . . . . . . . . . . . . . . . . . . . . . Insert Component 9 | . . . 2 . 3 . 3 . . . 1 . . . . . . . . . . . . . . . . . . . . . . . Analyze 10 | . . . 2 . 4 . 3 . . . 1 . . . . . . . . . . . . . . . . . . . . . . . Garrison Access Hacks 21 | . . . . . 1 . 1 . 1 . 5 . 2 . 1 . 1 . 1 . 1 . 1 . . 2 . 2 1 . 1 . . . Unlock Access 13 | . . . . . 1 . 1 . 1 . 1 . 1 . 1 . 1 . 1 . 1 . 1 . . 1 . . 1 . 1 . . . Seal Access 4 | . . . . . . . . . . . 2 . 1 . . . . . . . . . . . . . . 1 . . . . . . Coupler Status 4 | . . . . . . . . . . . 2 . . . . . . . . . . . . . . 1 . 1 . . . . . . Unauthorized Hacks 20 | . 3 . 3 . 3 . 3 . 2 . . . 2 . 1 . 1 . . . . . . . . . . . 1 . 1 . . . Terminals 10 | . 2 . 2 . 2 . 2 . 1 . . . 1 . . . . . . . . . . . . . . . . . . . . . Botnet 6 | . 1 . 1 . 1 . 2 . . . . . 1 . . . . . . . . . . . . . . . . . . . . . Operators 4 | . 1 . 1 . 1 . . . 1 . . . . . . . . . . . . . . . . . . . . . . . . . Fabricators . | . . . . . . . . . . . . . . . . . . . . . . . . . . . . . . . . . . . Repair Stations . | . . . . . . . . . . . . . . . . . . . . . . . . . . . . . . . . . . . Recycling Units 2 | . 1 . 1 . . . . . . . . . . . . . . . . . . . . . . . . . . . . . . . Tunnel 2 | . 1 . 1 . . . . . . . . . . . . . . . . . . . . . . . . . . . . . . . Scanalyzers . | . . . . . . . . . . . . . . . . . . . . . . . . . . . . . . . . . . . Garrison Access 8 | . . . . . 1 . 1 . 1 . . . 1 . 1 . 1 . . . . . . . . . . . 1 . 1 . . . Restock 1 | . . . . . . . 1 . . . . . . . . . . . . . . . . . . . . . . . . . . . Eject 7 | . . . . . 1 . . . 1 . . . 1 . 1 . 1 . . . . . . . . . . . 1 . 1 . . . Data Cores Recovered 2 | . . . . . . . 1 . . . . . . . . . . . . . . . 1 . . . . . . . . . . . Used 2 | . . . . . . . 1 . . . . . . . . . . . . . . . 1 . . . . . . . . . . . Hacking Detections 105 | . 7 . 9 . 5 2 5 3 4 2 7 2 7 1 5 1 1 . 3 2 5 2 7 2 3 6 1 6 4 1 1 . . 1 Full Trace Events 23 | . . . . . 1 2 1 . 1 1 2 . 2 . 3 1 . . 1 1 1 . 2 1 1 . . 2 . . . . . . Feedback Events 3 | . . . . . . . . . . 1 1 . . . . . . . . . 1 . . . . . . . . . . . . . Corruption 3 | . . . . . . . . . . 1 1 . . . . . . . . . 1 . . . . . . . . . . . . . Feedback Blocked . | . . . . . . . . . . . . . . . . . . . . . . . . . . . . . . . . . . . Robot Schematics Acquired . | . . . . . . . . . . . . . . . . . . . . . . . . . . . . . . . . . . . Robots Built 1 | . . . . . . . . . . . . . . . . . . . 1 . . . . . . . . . . . . . . . Authchips . | . . . . . . . . . . . . . . . . . . . . . . . . . . . . . . . . . . . Time 204 | . . . . . . . . . . . . . . . . . . . 93 . . . . . . . . 111 . . . . . . Total Robot Build Rating 7 | . . . . . . . . . . . . . . . . . . . 7 . . . . . . . . . . . . . . . Part Schematics Acquired 13 | . 1 . 4 1 3 . 3 . . . 1 . . . . . . . . . . . . . . . . . . . . . . . Parts Built 2 | . . . . . . . . . 1 . . . 1 . . . . . . . . . . . . . . . . . . . . . Authchips . | . . . . . . . . . . . . . . . . . . . . . . . . . . . . . . . . . . . Time 98 | . . . . . . . . . 73 . . . 25 . . . . . . . . . . . . . . . . . . . . . Total Part Build Rating 4 | . . . . . . . . . 3 . . . 1 . . . . . . . . . . . . . . . . . . . . . Parts Repaired 7 | . 2 . 3 . . . . . . . . . . . . . . . . . . . 1 . . 1 . . . . . . . . Time 258 | . 52 . 88 . . . . . . . . . . . . . . . . . . . 50 . . 68 . . . . . . . . Parts Recycled . | . . . . . . . . . . . . . . . . . . . . . . . . . . . . . . . . . . . Recycled Matter . | . . . . . . . . . . . . . . . . . . . . . . . . . . . . . . . . . . . Retrieved Matter . | . . . . . . . . . . . . . . . . . . . . . . . . . . . . . . . . . . . Retrieved Components 8 | . . . . . . . . . 8 . . . . . . . . . . . . . . . . . . . . . . . . . Parts Scanalyzed 9 | . . . 2 . 3 . 3 . . . 1 . . . . . . . . . . . . . . . . . . . . . . . Part Schematics Acquired 9 | . . . 2 . 3 . 3 . . . 1 . . . . . . . . . . . . . . . . . . . . . . . Parts Damaged . | . . . . . . . . . . . . . . . . . . . . . . . . . . . . . . . . . . . Bothacking | -11 -10 -10 -9 -9 -8 -8 -8 -8 -7 -7 -7 -7 -6 -6 -5 -5 -5 -5 -4 -4 -4 -4 -3 -3 -3 -3 -3 -2 -2 -2 -1 -1 -1 -1 ------------ Run | Yrd Mat Min Mat Min Mat Gar Mat Gar Fac Gar Fac Gar Fac Gar Fac Gar Fac Gar Fac Gar Fac Gar Res Gar Res Qua Gar Res Tes Gar Acc Gar Acc Com Used RIF Installer 15 | . . . . . . 1 . 1 . 2 . 1 . 1 . 1 . 1 . 1 . 2 . 1 . . 1 . . 1 . 1 . . Code Merge 1 | . . . . . . . . . . . . . . 1 . . . . . . . . . . . . . . . . . . . . Command Fork 2 | . . . . . . . . . . 1 . . . . . . . . . . . . . . . . . . . . . 1 . . Signal Jammer 1 | . . . . . . . . . . . . . . . . . . . . . . . . 1 . . . . . . . . . . Zone Cloak 2 | . . . . . . . . . . . . . . . . 1 . . . 1 . . . . . . . . . . . . . . Robot Detection 1 | . . . . . . . . 1 . . . . . . . . . . . . . . . . . . . . . . . . . . Watcher Feeds 1 | . . . . . . . . . . . . . . . . . . . . . . . . . . . . . . 1 . . . . Patrol Navigation 1 | . . . . . . . . . . . . . . . . . . 1 . . . . . . . . . . . . . . . . Structural Interface 1 | . . . . . . . . . . . . 1 . . . . . . . . . . . . . . . . . . . . . . Autooverride 2 | . . . . . . . . . . 1 . . . . . . . . . . . 1 . . . . . . . . . . . . Autoassimilate 1 | . . . . . . . . . . . . . . . . . . . . . . . . . . . 1 . . . . . . . Crosswire 1 | . . . . . . . . . . . . . . . . . . . . . . 1 . . . . . . . . . . . . Robots Hacked 261 | . . . . . . . . 5 7 3 . 7 8 12 11 9 5 9 4 11 7 7 13 30 8 4 21 22 4 16 1 17 8 12 Non-combat 31 | . . . . . . . . . 2 . . . 1 1 2 . 3 . 3 . . . 6 . 2 3 1 6 . . . . . 1 Combat 230 | . . . . . . . . 5 5 3 . 7 7 11 9 9 2 9 1 11 7 7 7 30 6 1 20 16 4 16 1 17 8 11 Autooverrided 71 | . . . . . . . . . . . . 5 1 3 3 2 1 3 . 1 . 1 1 13 2 . 7 6 2 6 1 5 5 3 Autoassimilated 13 | . . . . . . . . . . . . . . . . . . . . . . . . . . . . 3 1 2 . 5 . 2 Robot Hacks Applied 219 | . . . . . . . . 5 12 4 . 2 8 11 8 7 4 7 8 11 7 7 20 18 10 4 16 16 1 8 . 8 4 13 parse_system 10 | . . . . . . . . . . . . . 1 . 1 . . 1 . . 1 1 . 1 . 1 1 1 . . . 1 . . no_distress 1 | . . . . . . . . . . . . . . . 1 . . . . . . . . . . . . . . . . . . . map_walls 2 | . . . . . . . . . . . . . . . . . 1 . . . . . . . . . . 1 . . . . . . map_earth 1 | . . . . . . . . . . . . . . . . . . . . . . . 1 . . . . . . . . . . . find_fabricator 4 | . . . . . . . . . . . . . . . . . 1 . . . . . 2 . . . . 1 . . . . . . drop_inventory 9 | . . . . . . . . . . . . . . . . . 1 . . . . . 2 . 1 2 . 3 . . . . . . find_recycling 3 | . . . . . . . . . 1 . . . 1 . . . . . . . . . 1 . . . . . . . . . . . find_station 1 | . . . . . . . . . . . . . . . . . . . . . . . 1 . . . . . . . . . . . purge_threat 24 | . . . . . . . . . 6 . . . . . . . . . 3 . . . 4 . 5 . . 2 . . . . . 4 disarm_traps 1 | . . . . . . . . . . . . . . . . . . . 1 . . . . . . . . . . . . . . . block_reporting 2 | . . . . . . . . . . . . . . . . . . . 1 . . . 1 . . . . . . . . . . . map_route 1 | . . . . . . . . . . . . . . . . . . . 1 . . . . . . . . . . . . . . . redirect_shields 1 | . . . . . . . . . . . . . . . . . . . . . . . . . . . 1 . . . . . . . locate_prototypes 1 | . . . . . . . . . . . . . . . . . . . . . . . . . . 1 . . . . . . . . emergency_deploy 1 | . . . . . . . . . . . . . . . . . . . . . . . . . . . . 1 . . . . . . find_garrison 4 | . . . . . . . . . 1 . . . . . 1 . 1 . 1 . . . . . . . . . . . . . . . scatter_targeting 6 | . . . . . . . . . . . . . . . . . . . . 1 . 1 . . . . 1 . . . . 1 . 2 link_complan 3 | . . . . . . . . . . . . . . . . . . . . . . 1 . . . . 1 . . . . . . 1 disrupt_area 3 | . . . . . . . . . . . . . . . . . . . . 1 1 . . . . . . . . . . . . 1 spike_heat 1 | . . . . . . . . . . . . . . . . . . . . . . . . . . . . . . . . . . 1 overload_power 2 | . . . . . . . . . . . . . . 1 . . . . . . 1 . . . . . . . . . . . . . amplify_resonance 27 | . . . . . . . . . 1 2 . . 1 2 3 . . . . . 1 . 2 3 3 . 2 3 . 1 . 1 1 1 disable_weapons 2 | . . . . . . . . . 1 . . . . . . 1 . . . . . . . . . . . . . . . . . . reboot_system 5 | . . . . . . . . 1 . . . . . . . 2 . . . . . . . . . . . . 1 . . . 1 . overwrite_iff 46 | . . . . . . . . 2 2 1 . . 3 7 . 3 . 5 1 5 2 3 . 3 . . 4 1 . 4 . . . . streamctrl_low 1 | . . . . . . . . . . . . . . . . . . . . . . . 1 . . . . . . . . . . . streamctrl_high 7 | . . . . . . . . 1 . . . . 1 1 . . . 1 . . . . 1 . . . . . . 1 . 1 . . formatsys_low 1 | . . . . . . . . . . . . . . . . . . . . . . . 1 . . . . . . . . . . . formatsys_high 48 | . . . . . . . . 1 . 1 . 2 1 . 2 1 . . . 4 1 1 3 11 1 . 6 3 . 2 . 4 2 2 formatsys_deep 1 | . . . . . . . . . . . . . . . . . . . . . . . . . . . . . . . . . . 1 Relay Couplers Released 238 | . . . . . 3 6 4 27 3 3 2 24 4 9 3 10 3 9 . 27 . 11 4 31 3 . 22 4 3 15 3 5 . . Ejected 22 | . . . . . 3 . . . 3 . . . 4 . 3 . 3 . . . . . . . . . . . 3 . 3 . . . Machine Destruction 205 | . . . . . . 6 . 27 . 3 2 24 . 9 . 10 . 9 . 27 . 11 . 31 3 . 22 4 . 12 . 5 . . Programmers 11 | . . . . . . . 4 . . . . . . . . . . . . . . . 4 . . . . . . 3 . . . . Attached 71 | . . . . . . . . 4 4 1 . 3 3 6 1 2 . 4 . 6 1 6 2 4 1 . 7 3 3 5 1 2 . 2 Crosswired 45 | . . . . . . . . . . . . . . . . . . . . . . 9 2 17 2 . 4 1 1 6 1 2 . . Merged Code Value 769 | . . . . . . . . . . . . . . 84 8 41 . 29 . 72 . 113 17 215 13 . 74 5 . 55 14 29 . . Fabnet Peak Effective % . | . . . . . . . . . . . . . . . . . . . . . . . . . . . . . . . . . . . Robots Rewired 45 | . . . . . . . . 2 . . . 8 . 5 . 1 . . . 7 1 . . 4 . . 6 . . 11 . . . . Allies Hacked 6 | . . . . . . . . . . . . . . . . . . . . . . . . 1 . . . 2 . 1 . . . 2 Hacks Repelled . | . . . . . . . . . . . . . . . . . . . . . . . . . . . . . . . . . . . Allies | -11 -10 -10 -9 -9 -8 -8 -8 -8 -7 -7 -7 -7 -6 -6 -5 -5 -5 -5 -4 -4 -4 -4 -3 -3 -3 -3 -3 -2 -2 -2 -1 -1 -1 -1 -------- Run | Yrd Mat Min Mat Min Mat Gar Mat Gar Fac Gar Fac Gar Fac Gar Fac Gar Fac Gar Fac Gar Fac Gar Res Gar Res Qua Gar Res Tes Gar Acc Gar Acc Com Total Allies 259 | . . . . . . . . 6 2 2 . 15 6 17 5 9 1 9 3 23 5 8 7 34 3 . 26 13 3 27 1 16 8 10 Largest Group 11 | . . . . . . . . 2 1 1 . 6 2 5 5 2 2 3 2 7 5 2 5 5 5 . 11 2 3 11 10 8 4 6 Highest-Rated Group 699 | . . . . . . . . 51 16 32 . 108 90 227 227 145 145 147 94 393 228 112 202 286 301 . 699 129 174 418 429 491 233 366 Highest-Rated Ally 219 | . . . . . . . . 31 16 32 . 39 90 85 85 116 116 49 47 95 49 56 137 64 137 . 95 65 58 142 64 219 64 144 Total Orders 18 | . . . . . . . . . . . . . . 3 3 2 1 . . 1 . . 5 . . . . . 1 . . . 1 1 STAY 7 | . . . . . . . . . . . . . . . 2 1 . . . . . . 2 . . . . . 1 . . . . 1 ROAM 3 | . . . . . . . . . . . . . . 2 . . . . . . . . . . . . . . . . . . 1 . FOLLOW 5 | . . . . . . . . . . . . . . 1 1 1 1 . . . . . 1 . . . . . . . . . . . AID 2 | . . . . . . . . . . . . . . . . . . . . . . . 2 . . . . . . . . . . . DROP 1 | . . . . . . . . . . . . . . . . . . . . 1 . . . . . . . . . . . . . . Ally Attacks 1271 | . . . . . . . . 34 9 6 . 42 30 69 66 36 18 28 6 125 53 49 48 142 45 . 115 56 8 67 17 125 21 56 Total Damage 42049 | . . . . . . . . 662 50 154 . 581 872 1798 2441 1135 1074 770 173 4564 1641 1760 1600 4506 1996 . 4699 2099 303 1842 195 4095 793 2246 Kills 222 | . . . . . . . . 5 1 . . 4 4 12 16 7 7 7 1 29 5 8 4 23 13 . 28 10 1 7 . 15 3 12 Allies Corrupted 16 | . . . . . . . . . . . . 1 . 2 . 1 . . 1 . 1 1 1 1 2 . 1 1 . 1 . 1 . 1 Allies Melted 2 | . . . . . . . . . . . . . . . . . . . . 1 . . . 1 . . . . . . . . . . Intel | -11 -10 -10 -9 -9 -8 -8 -8 -8 -7 -7 -7 -7 -6 -6 -5 -5 -5 -5 -4 -4 -4 -4 -3 -3 -3 -3 -3 -2 -2 -2 -1 -1 -1 -1 ------- Run | Yrd Mat Min Mat Min Mat Gar Mat Gar Fac Gar Fac Gar Fac Gar Fac Gar Fac Gar Fac Gar Fac Gar Res Gar Res Qua Gar Res Tes Gar Acc Gar Acc Com Robot Analysis Total . | . . . . . . . . . . . . . . . . . . . . . . . . . . . . . . . . . . . Derelict Logs Recovered 2 | . . 1 . 1 . . . . . . . . . . . . . . . . . . . . . . . . . . . . . . Drone Launches . | . . . . . . . . . . . . . . . . . . . . . . . . . . . . . . . . . . . Drone Recoveries . | . . . . . . . . . . . . . . . . . . . . . . . . . . . . . . . . . . . Exploration | -11 -10 -10 -9 -9 -8 -8 -8 -8 -7 -7 -7 -7 -6 -6 -5 -5 -5 -5 -4 -4 -4 -4 -3 -3 -3 -3 -3 -2 -2 -2 -1 -1 -1 -1 ------------- Run | Yrd Mat Min Mat Min Mat Gar Mat Gar Fac Gar Fac Gar Fac Gar Fac Gar Fac Gar Fac Gar Fac Gar Res Gar Res Qua Gar Res Tes Gar Acc Gar Acc Com Turns Passed 48828 | 75 2092 1371 2180 1353 1478 936 1272 1796 805 878 1508 1411 1896 2029 1283 2116 451 1583 308 1886 650 1909 1736 1907 1335 1411 1858 3101 561 1173 105 974 1029 2372 Spaces Moved 18813 | 17 858 499 847 538 487 414 457 817 405 543 729 699 704 736 511 793 173 530 155 824 246 693 730 687 432 488 599 1008 239 428 37 326 358 806 Core 94 | . . . . . . . . . . . . . . . . . . . . . . . . . . . . . . . . . . 94 Treads 11460 | 5 857 499 836 538 218 . 106 1 . . . . . 4 . 26 . 408 155 824 246 693 730 687 432 488 599 1008 239 428 37 326 358 712 Legs 12 | 12 . . . . . . . . . . . . . . . . . . . . . . . . . . . . . . . . . . Wheels 7247 | . 1 . 11 . 269 414 351 816 405 543 729 699 704 732 511 767 173 122 . . . . . . . . . . . . . . . . Hover . | . . . . . . . . . . . . . . . . . . . . . . . . . . . . . . . . . . . Flight . | . . . . . . . . . . . . . . . . . . . . . . . . . . . . . . . . . . . Fastest Speed 50 | 120 95 240 145 240 140 140 145 145 115 130 130 115 115 175 205 190 205 205 160 160 162 160 160 160 240 238 238 161 161 161 259 243 243 50 Average Speed 196 | 131 194 240 190 240 219 161 176 153 130 130 130 128 162 185 205 211 205 234 160 180 216 207 179 218 244 240 242 240 193 208 259 249 243 217 Slowest Speed 730 | 160 240 240 320 240 560 225 243 325 160 130 130 130 190 730 205 410 205 245 160 242 242 326 245 243 253 248 243 244 244 259 259 259 243 255 Overloaded Moves . | . . . . . . . . . . . . . . . . . . . . . . . . . . . . . . . . . . . Propulsion Burnouts . | . . . . . . . . . . . . . . . . . . . . . . . . . . . . . . . . . . . Robots Hopped 6 | . . . . . . . . . . . . . . . . . . . . 6 . . . . . . . . . . . . . . Cave-ins Triggered 1 | . . . . . . . . 1 . . . . . . . . . . . . . . . . . . . . . . . . . . Exploration Rate (%) 50 | 3 94 98 71 95 55 56 50 68 15 60 23 91 22 83 13 90 7 74 8 87 10 83 26 93 20 57 91 40 24 76 1 47 17 35 Regions Visited 34 Branch Regions 5 Pre-discovered Areas 3 | . 1 . 1 1 . . . . . . . . . . . . . . . . . . . . . . . . . . . . . . Known Exits Taken 15 | . . . 1 . 1 . 1 . 1 . 1 . 1 . 1 . 1 . 1 . 1 . 1 . . 1 . 1 1 . 1 . . . Unknown Exits Taken 6 | 1 1 1 . 1 . . . . . . . . . . . . . . . . . . . . 1 . . . . . . . 1 . Scrap Searched 6 | . . 2 . 4 . . . . . . . . . . . . . . . . . . . . . . . . . . . . . . Spaces Dug 240 | . 5 41 4 . 17 12 . 8 4 . 4 4 1 . . 27 4 . 1 2 . 2 9 2 4 7 1 61 3 1 . . 2 14 Terrain Destroyed 1263 | . 31 69 22 7 142 57 20 42 13 . 11 19 26 56 49 31 13 27 4 31 2 56 23 48 9 16 54 268 7 5 . 4 30 71 Melee . | . . . . . . . . . . . . . . . . . . . . . . . . . . . . . . . . . . . Projectile 347 | . 5 . 5 . 5 . 1 3 4 . 11 9 18 14 9 7 9 3 4 2 2 20 23 13 9 10 16 35 7 5 . 4 23 71 AOE 916 | . 26 69 17 7 137 57 19 39 9 . . 10 8 42 40 24 4 24 . 29 . 36 . 35 . 6 38 233 . . . . 7 . Terrain Rammed . | . . . . . . . . . . . . . . . . . . . . . . . . . . . . . . . . . . . Walls Destroyed . | . . . . . . . . . . . . . . . . . . . . . . . . . . . . . . . . . . . Machines Disabled . | . . . . . . . . . . . . . . . . . . . . . . . . . . . . . . . . . . . Actions | -11 -10 -10 -9 -9 -8 -8 -8 -8 -7 -7 -7 -7 -6 -6 -5 -5 -5 -5 -4 -4 -4 -4 -3 -3 -3 -3 -3 -2 -2 -2 -1 -1 -1 -1 --------- Run | Yrd Mat Min Mat Min Mat Gar Mat Gar Fac Gar Fac Gar Fac Gar Fac Gar Fac Gar Fac Gar Fac Gar Res Gar Res Qua Gar Res Tes Gar Acc Gar Acc Com Total 28074 | 57 1114 644 1223 576 734 550 850 1134 649 673 1220 1106 1392 1253 685 1102 246 811 193 1154 342 1005 1103 989 659 675 903 1635 336 702 45 481 457 1376 Wait 4402 | 26 130 107 203 24 99 19 291 23 163 14 416 179 563 170 87 98 29 176 10 125 40 48 211 90 145 94 98 252 23 72 5 34 33 305 Move 18774 | 16 857 498 846 537 486 413 456 816 404 542 729 698 703 735 510 792 172 529 155 815 246 692 729 686 431 487 598 1007 238 427 36 325 357 806 Hop 2 | . . . . . . . . . . . . . . . . . . . . 2 . . . . . . . . . . . . . . Pick Up 387 | . 17 9 17 1 11 6 21 25 8 4 6 7 20 28 14 9 6 9 . 23 9 29 17 9 3 9 6 18 8 5 . 10 2 21 Fast Attach 202 | 1 . . 14 . 1 . 5 5 10 3 4 2 7 7 3 8 2 4 . 6 1 17 6 6 10 5 11 15 3 8 1 8 1 28 Attach 248 | 2 3 2 8 . 10 7 4 13 3 2 2 5 19 20 5 3 . 7 1 14 7 24 12 6 2 5 4 13 3 14 . 6 4 18 Detach 149 | 2 . . 3 . 4 . 2 . 3 1 . 3 8 8 3 3 1 5 . 5 . 13 15 5 1 2 5 6 5 11 . 5 2 28 Swap 558 | 1 22 8 17 2 26 18 5 44 12 10 12 12 1 12 15 35 5 19 6 21 2 17 19 38 14 27 24 43 9 13 . 8 7 34 Drop 381 | 2 6 2 19 . 5 1 22 16 10 4 10 9 15 22 10 14 5 9 . 21 7 24 17 10 11 14 11 26 3 4 . 14 1 37 Fire 2050 | 7 76 17 93 11 89 44 44 108 36 27 36 60 54 118 37 58 17 38 21 36 26 119 76 69 42 32 80 234 44 84 . 69 50 98 Melee 7 | . . . . . . . . 7 . . . . . . . . . . . . . . . . . . . . . . . . . . Ram 1 | . . . . . 1 . . . . . . . . . . . . . . . . . . . . . . . . . . . . . Kick . | . . . . . . . . . . . . . . . . . . . . . . . . . . . . . . . . . . . Crush 33 | . 3 1 3 1 2 . . . . . . . . . . . 1 . . . 1 6 1 . . . . 12 . . 1 . . 1 Escape Stasis 256 | . . . . . . 18 . 39 . 56 . 32 . 24 . 45 8 6 . . . 2 . 10 . . 6 6 . 2 . 2 . . Rewire 421 | . . . . . . . . 10 . 1 . 85 . 100 1 11 . . . 56 3 . . 45 . . 45 3 . 59 2 . . . Trap 4 | . . . . . . 2 . 2 . . . . . . . . . . . . . . . . . . . . . . . . . . Miscellaneous 199 | . . . . . . 22 . 26 . 9 5 14 2 9 . 26 . 9 . 30 . 14 . 15 . . 15 . . 3 . . . . Route ------- -11/Scrapyard -10/Materials (discovered 4 exits: *Mat x3 / *Min) -10/Mines (discovered 2 exits: *Mat x2) -9/Materials (discovered 3 exits: *Mat x2 / *Min) -9/Mines (discovered 3 exits: *Mat x2 / [*Exi]) -8/Materials (discovered 4 exits: *Fac x3 / Gar) -8/Garrison (discovered 3 exits: *Mat x3) -8/Materials (discovered 3 exits: *Fac x2 / Gar) -8/Garrison (discovered 3 exits: *Fac x3) -7/Factory -7/Garrison (discovered 2 exits: *Fac x2) -7/Factory (discovered 6 exits: *Fac / Sto x2 / Low x2 / Gar) -7/Garrison (discovered 3 exits: *Fac x3) -6/Factory (discovered 4 exits: *Fac / Low x2 / Gar) -6/Garrison (discovered 3 exits: *Fac x3) -5/Factory (discovered 3 exits: Upp x2 / Gar) -5/Garrison (discovered 3 exits: *Fac x3) -5/Factory -5/Garrison (discovered 2 exits: *Fac x2) -4/Factory (discovered 2 exits: *Res / Gar) -4/Garrison (discovered 3 exits: *Fac x3) -4/Factory -4/Garrison (discovered 3 exits: *Res x3) -3/Research (discovered 3 exits: *Res x2 / Gar) -3/Garrison (discovered 3 exits: *Res x3) -3/Research -3/Quarantine -3/Garrison (discovered 3 exits: *Res x3) -2/Research (discovered 3 exits: *Acc / *Tes x2) -2/Testing -2/Garrison (discovered 2 exits: *Acc x2) -1/Access -1/Garrison -1/Access -1/Command 0b10 Command History --------- Turn | Location | Event 1 | -11/Scrapyard | Discovered new exit (range 1) 76 | -11/Scrapyard | Entered Materials 328 | -10/Materials | Build established: Mutant 397 | -10/Materials | Discovered new exit (range 7) 587 | -10/Materials | Discovered new exit (range 13) 788 | -10/Materials | Repaired Lgt. Armor Plating 815 | -10/Materials | Repaired Lgt. Treads 1104 | -10/Materials | Discovered new exit (range 9) 1155 | -10/Materials | Discovered new exit (range 16) 2168 | -10/Materials | Entered Mines 2470 | -10/Mines | Discovered new exit (range 12) 2569 | -10/Mines | Met a Derelict who couldn't figure out how to use a Trap Extractor 2966 | -10/Mines | Received a Rocket Launcher from a helpful Derelict 3000 | -10/Mines | Discovered new exit (range 10) 3539 | -10/Mines | Entered Materials 3539 | -9/Materials | Evolved 2 slots: Propulsion x1, Utility x1 3540 | -9/Materials | Identified exit to Mines 3826 | -9/Materials | Discovered new exit (range 20) 4345 | -9/Materials | Discovered new exit (range 7) 4436 | -9/Materials | Repaired Lgt. Treads 4463 | -9/Materials | Repaired Lgt. Treads 4501 | -9/Materials | Repaired Corrupted Lgt. Treads 5719 | -9/Materials | Entered Mines 5973 | -9/Mines | Discovered new exit (range 11) 6116 | -9/Mines | Assembled infested the area 6124 | -9/Mines | Learned location of Zion (-6) 6291 | -9/Mines | Found a hidden stash of uninstalled traps 6378 | -9/Mines | Discovered new exit (range 5) 6578 | -9/Mines | Discovered new exit (range 5) 7072 | -9/Mines | Entered Materials 7072 | -8/Materials | Evolved 2 slots: Propulsion x1, Utility x1 7468 | -8/Materials | Discovered new exit (range 9) 8056 | -8/Materials | Discovered new exit (range 4) 8421 | -8/Materials | Discovered new exit (range 14) 8525 | -8/Materials | Identified exit to Garrison 8550 | -8/Materials | Entered Garrison 8602 | -8/Garrison | Triggered checkpoint 8754 | -8/Garrison | Garrison Relay disabled 8836 | -8/Garrison | Triggered checkpoint 8998 | -8/Garrison | Triggered checkpoint 9044 | -8/Garrison | Discovered new exit (range 10) 9134 | -8/Garrison | Triggered checkpoint 9221 | -8/Garrison | Discovered new exit (range 11) 9226 | -8/Garrison | Triggered checkpoint 9275 | -8/Garrison | Lost 3 parts (1n1u1w) 9279 | -8/Garrison | Discovered new exit (range 5) 9334 | -8/Garrison | Identified exit to Materials 9374 | -8/Garrison | Installed Relay Interface Framework 9433 | -8/Garrison | Garrison Relay disabled 9486 | -8/Garrison | Entered Materials 9734 | -8/Materials | Build established: Bothacker-Mutant 10021 | -8/Materials | Discovered new exit (range 11) 10060 | -8/Materials | Build established: Mutant 10399 | -8/Materials | Discovered new exit (range 5) 10516 | -8/Materials | Identified exit to Garrison 10686 | -8/Materials | First assault squad dispatched 10758 | -8/Materials | Entered Garrison 10820 | -8/Garrison | Triggered checkpoint 10874 | -8/Garrison | Build established: Bothacker-Mutant 10944 | -8/Garrison | Triggered checkpoint 10984 | -8/Garrison | Triggered checkpoint 11044 | -8/Garrison | Garrison Relay disabled 11184 | -8/Garrison | Triggered checkpoint 11207 | -8/Garrison | Triggered checkpoint 11220 | -8/Garrison | Triggered checkpoint 11258 | -8/Garrison | Destroyed 8 combat bots 11405 | -8/Garrison | Discovered new exit (range 14) 11466 | -8/Garrison | Triggered checkpoint 11503 | -8/Garrison | Garrison Relay disabled 11618 | -8/Garrison | Spotted B-75 Beast 11681 | -8/Garrison | Crushed by falling debris 11731 | -8/Garrison | Core integrity fell below 50% 11744 | -8/Garrison | Lost 10 parts (1p3n3u3w) 11761 | -8/Garrison | Destroyed B-75 Beast 11863 | -8/Garrison | Build established: Mutant 12000 | -8/Garrison | Discovered new exit (range 11) 12019 | -8/Garrison | Identified exit to Factory 12062 | -8/Garrison | Triggered checkpoint 12102 | -8/Garrison | Garrison Relay disabled 12154 | -8/Garrison | Triggered checkpoint 12325 | -8/Garrison | Discovered exit to Factory (range 57) 12325 | -8/Garrison | Discovered exit to Factory (range 65) 12325 | -8/Garrison | Discovered exit to Factory (range 23) 12377 | -8/Garrison | Expanded RIF knowledge: Robot Detection 12487 | -8/Garrison | Garrison Relay disabled 12498 | -8/Garrison | Garrison Relay disabled 12522 | -8/Garrison | Garrison Relay disabled 12554 | -8/Garrison | Entered Factory 12554 | -7/Factory | Evolved 2 slots: Utility x2 12743 | -7/Factory | Build established: Bothacker-Mutant 12979 | -7/Factory | Fabricated Hrd. Medium Armor Plating? 13348 | -7/Factory | Identified exit to Garrison 13359 | -7/Factory | Entered Garrison 13433 | -7/Garrison | Triggered checkpoint 13438 | -7/Garrison | Triggered checkpoint 13559 | -7/Garrison | Discovered new exit (range 12) 13621 | -7/Garrison | Triggered checkpoint 13666 | -7/Garrison | Triggered checkpoint 13675 | -7/Garrison | Warlord forces raided the area 13743 | -7/Garrison | Triggered checkpoint 13821 | -7/Garrison | Garrison Relay disabled 13871 | -7/Garrison | Expanded RIF knowledge: Command Fork 14125 | -7/Garrison | Discovered new exit (range 9) 14155 | -7/Garrison | Expanded RIF knowledge: Autooverride 14192 | -7/Garrison | Phase Generator disabled 14210 | -7/Garrison | Learned Factory security intel 14237 | -7/Garrison | Entered Factory 14424 | -7/Factory | Identified exit to Storage 14424 | -7/Factory | Identified exit to Lower Caves 14787 | -7/Factory | Discovered new exit (range 14) 15668 | -7/Factory | Garrison activated, responded to threat 15745 | -7/Factory | Destroyed 9 combat bots 15745 | -7/Factory | Identified exit to Garrison 15745 | -7/Factory | Entered Garrison 15928 | -7/Garrison | Expanded RIF knowledge: Structural Interface 15947 | -7/Garrison | Triggered checkpoint 15968 | -7/Garrison | Destroyed 7 combat bots 16007 | -7/Garrison | Triggered checkpoint 16201 | -7/Garrison | Triggered checkpoint 16221 | -7/Garrison | Discovered new exit (range 12) 16250 | -7/Garrison | Garrison Relay disabled 16379 | -7/Garrison | Triggered checkpoint 16491 | -7/Garrison | Triggered checkpoint 16515 | -7/Garrison | Garrison Relay disabled 16539 | -7/Garrison | Build established: Botlord-Mutant 16649 | -7/Garrison | Garrison Relay disabled 16703 | -7/Garrison | Triggered checkpoint 16711 | -7/Garrison | Discovered new exit (range 12) 16885 | -7/Garrison | Discovered new exit (range 10) 16911 | -7/Garrison | Triggered checkpoint 16958 | -7/Garrison | Garrison Relay disabled 16967 | -7/Garrison | Lost 4 allies 16981 | -7/Garrison | Triggered checkpoint 17086 | -7/Garrison | Garrison Relay disabled 17156 | -7/Garrison | Entered Factory 17156 | -6/Factory | Accompanied by 1 ally 17156 | -6/Factory | Evolved 2 slots: Utility x2 17369 | -6/Factory | Fabricated Cargo Storage Unit? 18031 | -6/Factory | Identified exit to Lower Caves 18256 | -6/Factory | Discovered new exit (range 13) 18987 | -6/Factory | Identified exit to Garrison 19052 | -6/Factory | Entered Garrison 19214 | -6/Garrison | Expanded RIF knowledge: Code Merge 19454 | -6/Garrison | Triggered checkpoint 19482 | -6/Garrison | Discovered new exit (range 12) 19610 | -6/Garrison | Garrison Relay disabled 19804 | -6/Garrison | Triggered checkpoint 19879 | -6/Garrison | Discovered new exit (range 10) 20155 | -6/Garrison | Lost 5 allies 20177 | -6/Garrison | System corruption reached 10% 20185 | -6/Garrison | Core integrity fell below 50% 20221 | -6/Garrison | Lost 6 parts (1p2n1u2w) 20399 | -6/Garrison | Garrison Relay disabled 20484 | -6/Garrison | Triggered checkpoint 20593 | -6/Garrison | Garrison Relay disabled 20812 | -6/Garrison | Rewired B-75 Beast 20943 | -6/Garrison | Discovered new exit (range 13) 21081 | -6/Garrison | Entered Factory 21081 | -5/Factory | Accompanied by 5 allies 21081 | -5/Factory | Evolved 2 slots: Power x1, Utility x1 21299 | -5/Factory | Lost 4 allies 21825 | -5/Factory | Spotted B-75 Beast 21838 | -5/Factory | Assimilated Beast 6a with formatsys_high 21981 | -5/Factory | First assault squad dispatched 22110 | -5/Factory | Identified exit to Upper Caves 22174 | -5/Factory | Cargo convoy interrupted 22356 | -5/Factory | Identified exit to Garrison 22364 | -5/Factory | Entered Garrison 22402 | -5/Garrison | Phase Generator disabled 22577 | -5/Garrison | Spotted B-75 Beast 22600 | -5/Garrison | Triggered checkpoint 22669 | -5/Garrison | Garrison Relay disabled 22733 | -5/Garrison | Rescued a captive Derelict 22794 | -5/Garrison | Lost 4 allies 22830 | -5/Garrison | Triggered checkpoint 22920 | -5/Garrison | Garrison Relay disabled 22932 | -5/Garrison | Triggered checkpoint 22985 | -5/Garrison | Discovered new exit (range 8) 23011 | -5/Garrison | Spotted B-75 Beast 23107 | -5/Garrison | Destroyed B-75 Beast 23232 | -5/Garrison | Rewired B-86 Titan 23446 | -5/Garrison | Triggered checkpoint 23504 | -5/Garrison | Triggered checkpoint 23595 | -5/Garrison | Garrison Relay disabled 23612 | -5/Garrison | Triggered checkpoint 23644 | -5/Garrison | Discovered new exit (range 12) 24093 | -5/Garrison | Discovered new exit (range 9) 24108 | -5/Garrison | Expanded RIF knowledge: Zone Cloak 24286 | -5/Garrison | Triggered checkpoint 24480 | -5/Garrison | Entered Factory 24480 | -5/Factory | Accompanied by 1 ally 24688 | -5/Factory | Found Prototype Launcher 24688 | -5/Factory | Identified Mni. Smartbomb Launcher 24692 | -5/Factory | Found Mni. Smartbomb Launcher 24765 | -5/Factory | Garrison activated, responded to threat 24780 | -5/Factory | First assault squad dispatched 24896 | -5/Factory | Identified exit to Garrison 24931 | -5/Factory | Entered Garrison 24963 | -5/Garrison | Expanded RIF knowledge: Patrol Navigation 25048 | -5/Garrison | Found Relay Coupler [Proto] 25138 | -5/Garrison | Garrison Relay disabled 25296 | -5/Garrison | Triggered checkpoint 25307 | -5/Garrison | Triggered checkpoint 25312 | -5/Garrison | Triggered checkpoint 25327 | -5/Garrison | Triggered checkpoint 25344 | -5/Garrison | Lost 4 allies 25366 | -5/Garrison | Destroyed 10 combat bots 25527 | -5/Garrison | Garrison Relay disabled 25609 | -5/Garrison | Discovered new exit (range 13) 25844 | -5/Garrison | Discovered new exit (range 14) 25957 | -5/Garrison | Triggered checkpoint 25961 | -5/Garrison | Triggered checkpoint 26066 | -5/Garrison | Garrison Relay disabled 26151 | -5/Garrison | System corruption reached 10% 26421 | -5/Garrison | System corruption reached 30% 26514 | -5/Garrison | Entered Factory 26514 | -4/Factory | Evolved 2 slots: Propulsion x2 26669 | -4/Factory | Discovered new exit (range 9) 26748 | -4/Factory | Garrison activated, responded to threat 26775 | -4/Factory | Fabricated M-30 Cleanser (x1) 26822 | -4/Factory | Identified exit to Garrison 26822 | -4/Factory | Entered Garrison 26822 | -4/Garrison | Accompanied by 1 ally 26990 | -4/Garrison | Triggered checkpoint 27041 | -4/Garrison | Garrison Relay disabled 27070 | -4/Garrison | Garrison Relay disabled 27086 | -4/Garrison | Triggered checkpoint 27109 | -4/Garrison | Garrison Relay disabled 27262 | -4/Garrison | Spotted B-86 Titan 27294 | -4/Garrison | Destroyed B-86 Titan 27322 | -4/Garrison | Triggered checkpoint 27326 | -4/Garrison | Spotted B-86 Titan 27336 | -4/Garrison | Triggered checkpoint 27370 | -4/Garrison | Destroyed B-86 Titan 27395 | -4/Garrison | Lost 6 allies 27417 | -4/Garrison | Destroyed 7 combat bots 27487 | -4/Garrison | Expanded RIF knowledge: Zone Cloak 27534 | -4/Garrison | Triggered checkpoint 27622 | -4/Garrison | Garrison Relay disabled 27754 | -4/Garrison | Found embedded Infiltrators 27788 | -4/Garrison | Discovered new exit (range 11) 27792 | -4/Garrison | Triggered checkpoint 27814 | -4/Garrison | Triggered checkpoint 27850 | -4/Garrison | Garrison Relay disabled 27952 | -4/Garrison | Rescued a captive Derelict 27962 | -4/Garrison | Rescued a captive Derelict 28076 | -4/Garrison | Triggered checkpoint 28100 | -4/Garrison | Triggered checkpoint 28112 | -4/Garrison | Garrison Relay disabled 28191 | -4/Garrison | Lost 9 allies 28419 | -4/Garrison | Discovered new exit (range 13) 28498 | -4/Garrison | Discovered new exit (range 49) 28498 | -4/Garrison | Discovered new exit (range 84) 28498 | -4/Garrison | Discovered new exit (range 17) 28624 | -4/Garrison | Garrison Relay disabled 28708 | -4/Garrison | Entered Factory 28708 | -4/Factory | Accompanied by 4 allies 28958 | -4/Factory | First assault squad dispatched 29109 | -4/Factory | Lost 4 allies 29358 | -4/Factory | Identified exit to Garrison 29358 | -4/Factory | Entered Garrison 29358 | -4/Garrison | Accompanied by 1 ally 29422 | -4/Garrison | Triggered checkpoint 29547 | -4/Garrison | System corruption reached 10% 29638 | -4/Garrison | Garrison Relay disabled 29695 | -4/Garrison | Spotted B-86 Titan 29782 | -4/Garrison | Rescued a captive Derelict 29839 | -4/Garrison | Triggered checkpoint 29908 | -4/Garrison | System corruption reached 30% 29940 | -4/Garrison | Lost 3 parts (2n1w) 30197 | -4/Garrison | Destroyed B-86 Titan 30206 | -4/Garrison | Triggered checkpoint 30249 | -4/Garrison | Lost 5 parts (1p2n1u1w) 30426 | -4/Garrison | Discovered new exit (range 49) 30426 | -4/Garrison | Discovered new exit (range 12) 30426 | -4/Garrison | Discovered new exit (range 43) 30542 | -4/Garrison | Triggered checkpoint 30572 | -4/Garrison | Expanded RIF knowledge: Crosswire 30612 | -4/Garrison | Garrison Relay disabled 30630 | -4/Garrison | Triggered checkpoint 30896 | -4/Garrison | Spotted Striker 30896 | -4/Garrison | Spotted Striker 30936 | -4/Garrison | Destroyed Striker 30946 | -4/Garrison | Allies destroyed Striker 30959 | -4/Garrison | Lost 4 parts (1p2u1w) 31006 | -4/Garrison | Expanded RIF knowledge: Autooverride 31016 | -4/Garrison | Triggered checkpoint 31020 | -4/Garrison | Core integrity fell below 50% 31091 | -4/Garrison | Garrison Relay disabled 31267 | -4/Garrison | Entered Research 31267 | -3/Research | Evolved 2 slots: Power x1, Utility x1 31594 | -3/Research | Discovered new exit (range 11) 31798 | -3/Research | Repaired Imp. Heavy Armor Plating 31826 | -3/Research | Spotted B-86 Titan 32336 | -3/Research | P-80 Master assimilated allied Veteran 8a 32538 | -3/Research | Lost 3 allies 32560 | -3/Research | Found Prototype Processor 32560 | -3/Research | Identified Spectral Analyzer 32867 | -3/Research | Spotted B-86 Titan 32909 | -3/Research | Discovered new exit (range 10) 32953 | -3/Research | Identified exit to Research 32997 | -3/Research | Identified exit to Garrison 33003 | -3/Research | Entered Garrison 33095 | -3/Garrison | Found Relay Coupler [Proto] 33098 | -3/Garrison | Found Relay Coupler [Proto] 33166 | -3/Garrison | Triggered checkpoint 33228 | -3/Garrison | Expanded RIF knowledge: Signal Jamming 33305 | -3/Garrison | Garrison Relay disabled 33325 | -3/Garrison | Triggered checkpoint 33398 | -3/Garrison | Spotted B-86 Titan 33402 | -3/Garrison | Destroyed B-86 Titan 33407 | -3/Garrison | Triggered checkpoint 33412 | -3/Garrison | Triggered checkpoint 33423 | -3/Garrison | Triggered checkpoint 33438 | -3/Garrison | Triggered checkpoint 33441 | -3/Garrison | Destroyed 7 combat bots 33478 | -3/Garrison | Lost 3 allies 33565 | -3/Garrison | Discovered new exit (range 8) 33582 | -3/Garrison | Garrison Relay disabled 33656 | -3/Garrison | Garrison Relay disabled 33658 | -3/Garrison | Garrison Relay disabled 33731 | -3/Garrison | Garrison Relay disabled 33805 | -3/Garrison | Triggered checkpoint 33825 | -3/Garrison | Garrison Relay disabled 33983 | -3/Garrison | Discovered new exit (range 7) 34105 | -3/Garrison | Garrison Relay disabled 34167 | -3/Garrison | Triggered checkpoint 34266 | -3/Garrison | Found Adv. Powered Armor 34269 | -3/Garrison | Found Adv. Powered Armor 34274 | -3/Garrison | Found Adv. Powered Armor 34277 | -3/Garrison | Found Adv. Powered Armor 34350 | -3/Garrison | Discovered new exit (range 10) 34407 | -3/Garrison | Triggered checkpoint 34457 | -3/Garrison | Garrison Relay disabled 34833 | -3/Garrison | Lost 6 allies 34910 | -3/Garrison | Entered Research 34910 | -3/Research | Accompanied by 4 allies 35410 | -3/Research | First assault squad dispatched 35830 | -3/Research | System corruption reached 10% 35832 | -3/Research | P-80 Master assimilated allied Marshal 8b 36033 | -3/Research | Found Prototype Device 36033 | -3/Research | Identified Exp. Shield Generator 36131 | -3/Research | Discovered new exit (range 8) 36245 | -3/Research | Entered Quarantine 36410 | -3/Quarantine | Found Core Cannon 36455 | -3/Quarantine | Found Phase Armor 36686 | -3/Quarantine | Repaired Imp. Heavy Siege Treads 37032 | -3/Quarantine | Found Alien Artifact 37032 | -3/Quarantine | Identified Phase Redirector 37200 | -3/Quarantine | Found Alien Artifact 37646 | -3/Quarantine | Identified exit to Garrison 37656 | -3/Quarantine | Entered Garrison 37868 | -3/Garrison | Triggered checkpoint 37878 | -3/Garrison | Triggered checkpoint 37884 | -3/Garrison | Triggered checkpoint 38020 | -3/Garrison | Discovered exit to Research (range 9) 38099 | -3/Garrison | Garrison Relay disabled 38136 | -3/Garrison | Triggered checkpoint 38184 | -3/Garrison | Lost 3 allies 38243 | -3/Garrison | Spotted B-86 Titan 38275 | -3/Garrison | Destroyed B-86 Titan 38305 | -3/Garrison | Garrison Relay disabled 38388 | -3/Garrison | Triggered checkpoint 38494 | -3/Garrison | Discovered exit to Research (range 10) 38630 | -3/Garrison | Triggered checkpoint 38683 | -3/Garrison | Found embedded Infiltrators 38936 | -3/Garrison | Expanded RIF knowledge: Autoassimilate 38980 | -3/Garrison | Discovered exit to Research (range 10) 38998 | -3/Garrison | Triggered checkpoint 39021 | -3/Garrison | Garrison Relay disabled 39028 | -3/Garrison | Triggered checkpoint 39065 | -3/Garrison | Lost 3 allies 39089 | -3/Garrison | Garrison Relay disabled 39163 | -3/Garrison | Garrison Relay disabled 39370 | -3/Garrison | Lost 8 allies 39514 | -3/Garrison | Entered Research 39514 | -2/Research | Evolved 2 slots: Utility x2 39670 | -2/Research | Found Unknown Device 39670 | -2/Research | Identified Quantum Capacitor 39764 | -2/Research | First assault squad dispatched 40546 | -2/Research | Fabricated C-65 Expert? 41014 | -2/Research | System corruption reached 10% 41174 | -2/Research | Found Prototype Device 41174 | -2/Research | Identified Exp. EM Disruption Field 41366 | -2/Research | Found Hvy. Reactive Plating 41367 | -2/Research | Discovered new exit (range 13) 41468 | -2/Research | Found Fusion Bomb Launcher 41515 | -2/Research | Identified exit to Testing 41612 | -2/Research | Spotted B-90 Cyclops 42229 | -2/Research | Garrison activated, responded to threat 42243 | -2/Research | Spotted B-90 Cyclops 42247 | -2/Research | Core integrity fell below 50% 42363 | -2/Research | Destroyed B-90 Cyclops 42432 | -2/Research | Spotted B-90 Cyclops 42450 | -2/Research | Found Prototype Launcher 42450 | -2/Research | Identified Point Singularity Launcher 42454 | -2/Research | Found Point Singularity Launcher 42540 | -2/Research | High security lockdown imminent 42570 | -2/Research | Lost 5 parts (1p2n1u1w) 42615 | -2/Research | Entered Testing 42615 | -2/Testing | Accompanied by 1 ally 42645 | -2/Testing | Spotted PY-8QMLG53H8A 42658 | -2/Testing | Destroyed PY-8QMLG53H8A 42865 | -2/Testing | First assault squad dispatched 43114 | -2/Testing | Found Prototype Device 43114 | -2/Testing | Identified AEGIS Remote Shield 43163 | -2/Testing | Identified exit to Garrison 43176 | -2/Testing | Entered Garrison 43176 | -2/Garrison | Accompanied by 1 ally 43262 | -2/Garrison | System corruption reached 30% 43312 | -2/Garrison | Triggered checkpoint 43384 | -2/Garrison | Garrison Relay disabled 43470 | -2/Garrison | Triggered checkpoint 43470 | -2/Garrison | Spotted B-90 Cyclops 43480 | -2/Garrison | Hijacked Cyclops 9a control node with streamctrl_high 43480 | -2/Garrison | Triggered checkpoint 43493 | -2/Garrison | Triggered checkpoint 43541 | -2/Garrison | Lost 12 allies 43551 | -2/Garrison | Destroyed 8 combat bots 43623 | -2/Garrison | Expanded RIF knowledge: Watcher Feeds 43636 | -2/Garrison | Garrison Relay disabled 43656 | -2/Garrison | Triggered checkpoint 43714 | -2/Garrison | Lost 4 parts (2n2u) 43722 | -2/Garrison | Discovered new exit (range 10) 43879 | -2/Garrison | Discovered new exit (range 3) 43956 | -2/Garrison | Triggered checkpoint 44009 | -2/Garrison | Garrison Relay disabled 44349 | -2/Garrison | Entered Access 44349 | -1/Access | Accompanied by 10 allies 44349 | -1/Access | Evolved 2 slots: Utility x1, Weapon x1 44375 | -1/Access | Identified exit to Garrison 44430 | -1/Access | Garrison activated, responded to threat 44454 | -1/Access | Entered Garrison 44454 | -1/Garrison | Accompanied by 3 allies 44483 | -1/Garrison | Lost 7 allies 44758 | -1/Garrison | Triggered checkpoint 44775 | -1/Garrison | Garrison Relay disabled 44843 | -1/Garrison | Build established: Botlord-Gunner 45034 | -1/Garrison | Triggered checkpoint 45035 | -1/Garrison | Spotted B-99 Colossus 45045 | -1/Garrison | Triggered checkpoint 45054 | -1/Garrison | Hijacked Colossus 10a control node with streamctrl_high 45078 | -1/Garrison | Triggered checkpoint 45103 | -1/Garrison | Lost 7 allies 45135 | -1/Garrison | Destroyed Colossus 10a 45153 | -1/Garrison | Found Corrupted Prototype Ballistic Gun 45159 | -1/Garrison | Found Corrupted Prototype Ballistic Gun 45275 | -1/Garrison | Identified Multirail (x2) 45276 | -1/Garrison | System corruption reached 10% 45323 | -1/Garrison | Expanded RIF knowledge: Command Fork 45394 | -1/Garrison | Discovered new exit (range 11) 45428 | -1/Garrison | Entered Access 45645 | -1/Access | Build established: Botlord-Tank 45928 | -1/Access | First assault squad dispatched 46036 | -1/Access | Energy Cycler disabled 46347 | -1/Access | Garrison activated, responded to threat 46424 | -1/Access | Spotted B-99 Colossus 46424 | -1/Access | Spotted B-99 Colossus 46448 | -1/Access | Discovered new exit (range 5) 46457 | -1/Access | Entered Command 46862 | -1/Command | Assimilated ARC 10a with formatsys_deep 46863 | -1/Command | Build established: Botlord-Gunner 47202 | -1/Command | Found Prototype Device 47202 | -1/Command | Identified Exp. Focal Shield 47239 | -1/Command | Found Exp. Focal Shield 47252 | -1/Command | Build established: Botlord-Tank 47382 | -1/Command | Lost 3 allies 47776 | -1/Command | Spotted B-99 Colossus 48050 | -1/Command | Build established: Botlord-Mutant 48099 | -1/Command | Found Prototype Protection 48099 | -1/Command | Identified Centrium Heavy Armor Plating 48345 | -1/Command | Spotted Alpha 7 48346 | -1/Command | Autoassimilated Alpha 7 with RIF 48362 | -1/Command | Spotted Alpha 7 48367 | -1/Command | Destroyed Alpha 7 48369 | -1/Command | Spotted Striker 48380 | -1/Command | Allies destroyed Alpha 7 48399 | -1/Command | Core integrity fell below 50% 48418 | -1/Command | Found Prototype Processor 48418 | -1/Command | Identified Exp. Target Analyzer 48458 | -1/Command | Identified Subatomic Replicator 48458 | -1/Command | Used Subatomic Replicator to replicate Exp. Cooling System 48554 | -1/Command | Destroyed Combat Programmer 48554 | -1/Command | Spotted Combat Programmer 48569 | -1/Command | Destroyed Combat Programmer 48583 | -1/Command | Spotted M Guard 48583 | -1/Command | Spotted M Guard 48616 | -1/Command | Destroyed M Guard 48629 | -1/Command | Destroyed M Guard 48629 | -1/Command | All MAIN.C guards destroyed 48644 | -1/Command | Found Corrupted Prototype Reactor 48644 | -1/Command | Identified Zero-point Reactor 48654 | -1/Command | Found Corrupted Prototype Protection 48654 | -1/Command | Identified Hvy. Regenerative Plating 48655 | -1/Command | System corruption reached 30% 48725 | -1/Command | Met MAIN.C 48767 | -1/Command | Lost 7 parts (1p4u2w) 48829 | -1/Command | Interfaced with 0b10 Conduit 48829 | *** | Assimilated 0b10! Last Messages --------------- You can still make a valuable contribution to your creator by offering up the wealth of secrets your systems must hold by now. So if you wouldn't mind, it's time to surrender. 48725_ Discarded Rnf. Antimatter Reactor. 48725_ Dropped Com. Particle Reactor. 48726_ Dropped Zero-point Reactor. 48726_ Dropped Hvy. Regenerative Plating. 48736_ Exp. Cooling System destroyed. 48740_ Door malfunctions. 48740_ Extracted 67 matter. 48756_ CFQFR%P5CTTK&X,< 4 =S6KMIC1IL|CE7=OQMD#1 48774_ 4RU:KWVK# GGOX#CAINAB/DO/Z5 48791_ System corrupted: Energy discharge (-37). 48806_ System corrupted: Matter fused (-5). 48807_ Acquired 5 matter. 48829_ Interfacing with system... 48829_ Overriding active MAIN.C lock. [Achievement: MAIN.CPP] [Achievement: One Last FU] Map ----- +----------------------------------------------------+ | ?????????????????????????????????????????????????? | | ?????????????????????????????????????????????????? | | ?????????????????????????????????????????????????? | | ## ######################################### | | "" ######################################### | | T ######################################### | | "" ######################################### | | ## ######################################### | | ## ######################################### | | ## ######################################### | | ## ######################################### | | #####/############################################ | | ##### ############################################ | | ##### ############################################ | | ##### ########""""""" """" ############### | | ##### ########"" "" ############### | | ##### ########""""" "" ############### | | ##### ########""""""""""" /!* | | ##### ########" " """ */=! | | ##### ########"" """""" */! | | ##### ########"" """""" !############### | | ############## " """""" ############### | | # ####### " "" ############### | | # ####### " " ""############### | | # #######""""""""" """""""############### | | # #######"" @"""""""""############### | | # ####### """""""""""############### | | # ####### " " " " ############### | | ##+########### " " " " ############### | | """ " " " """" " ############### | | """ """ " " """" ############### | | """ " " " " ############### | | ##+########### """""""""" " ############### | | # ###### " """ " """"""""############### | | # ###### """ " " " ############### | | # ########################################## | | # ########################################## | | #+################################################ | | # # ######################################### | | # # ######################################### | | # # ""######################################### | | # # ""######################################### | | # # ""######################################### | | # T######################################### | | + ""######################################### | | ### ""######################################### | | ### ""######################################### | | ?????????????????????????????????????????????????? | | ?????????????????????????????????????????????????? | | ?????????????????????????????????????????????????? | +----------------------------------------------------+ Best States ------------- Heat Dissipation 163 Coolant Potential 100 Energy Generation 83 Energy Capacity 1040 Matter Stores 300 Matter Capacity 550 Sight Range 16 Terrain Scan Density 10 Power Amplification 30 Armor Coverage 1200 Resistance: KI 40 Resistance: EX 50 Resistance: EM 75 Propulsion Shielding 33 Utility Shielding 66 Weapon Shielding 66 Weapon Cycling 25 Phase Shifting 10 Evasion (%) 55 Targeting Accuracy 20 Target Analysis 10 Core Analysis 9 Recoil Reduction 6 Energy Filtering 30 Offensive Hacking 10 Defensive Hacking 10 Relay Coupler Types 8 Relay Coupler Value 228 Trap Extractor Capacity 6 Item Schematics ----------------- Cargo Storage Unit | -10/Materials | Hacked Huge Storage Unit | -9/Materials | Hacked Plasma Cutter | -9/Materials | Scanalyzed Hcp. Storage Unit | -9/Materials | Hacked Datajack | -9/Materials | Scanalyzed Arm. Wheel | -9/Mines | Hacked Lgt. EM Pulse Cannon | -8/Materials | Scanalyzed Adv. Targeting Computer | -8/Materials | Scanalyzed Signal Interpreter | -8/Materials | Scanalyzed System Shield | -8/Materials | Scanalyzed Hrd. Medium Armor Plating | -8/Materials | Scanalyzed Structural Scanner | -8/Materials | Scanalyzed Arm. Huge Wheel | -7/Factory | Scanalyzed Robot Schematics ------------------ None Fabricated ------------ Hrd. Medium Armor Plating | x1 | -7/Factory Cargo Storage Unit | x1 | -6/Factory M-30 Cleanser | x1 | -4/Factory | Preloaded Alien Tech Used ----------------- Phase Redirector Phase Armor Core Cannon Subatomic Replicator Achievements -------------- MAIN.CPP One Last FU Shocking Conclusion Short-term Sacrifices Challenges ------------ None Game ------ Seed SkeletonHoverMaul Manual? 0 Play Time 10:25:01 Cumulative 194.2 hours Start 2024.07.23 @ 15:35:03 End 2024.07.24 @ 13:03:16 Sessions 5 Manual Loads 0 Difficulty Rogue Special Mode None Game No. 47 Rogue 47 Adventurer 0 Explorer 0 Win Type 4 Total 8 Types 4/0/2/0/1/1/0/0/0 Lore% 65 Gallery% 80 Achievement% 71 Wizard Run 0 Options --------- Layout 2 ASCII 0 Keyboard 1 Movement Vi Keybinds 0 Fullscreen 1 Font 24/Smallcaps Map View 50x44 Zoom Use 0% Tactical HUD 1 Map Filters NONE Filters NONE Steam 1 RUN: 8a8a406c-1674-4590-affe-db2f35f910f8